Workbook

Sheet Instruction Sheet
A2: v25
A3: Texas Tech University, Office of Research Services
A5: DO NOT CHANGE OR EDIT THE REFERENCE SHEET.
A7: YELLOW | B7: BLUE | C7: WHITE | D7: GREY | E7: ORANGE
A8: These cells are informational. Do not edit these cells. | B8: These cells are to assist in working through the budget. Do not edit these cells | C8: These cells are editable | D8: Do not edit these cells. They automatically calculate. | E8: These cells may be edited on the Detailed Budget sheet. If using the "Equip Trav PartCosts" or "Other Direct Costs" sheets, do not edit these values.
A10: COVER PAGE | J10: Detailed Budget
A11: PI Name | B11: Type in the Name of the Principal Investigator. | J11: Personnel Salary | K11: These will automatically fill based on the "Personnel Expense Calculator." Do not edit or alter these figures.
A12: Project Title | B12: Type in the Title of the project. | J12: Personnel Fringe Benefits | K12: These will automatically fill based on the "Personnel Expense Calculator." Do not edit or alter these figures.
A13: Sponsor | B13: Type in the agency or sponsor for the project to be funded. | J13: Total Salary and Fringe | K13: These will automatically fill based on the "Personnel Expense Calculator." Do not edit or alter these figures.
A14: Project State and End Dates | B14: Type in the Start and End Dates of the project. Please refer to the proposal guidelines for instructions, if applicable. | J14: Equipment | K14: These values may either be directly entered into the cell, or itemized using the "EQUIP TRAV PART COSTS" tab. Quotes must be provided for all Capital Equipment.
A15: F&A Rate | B15: Type in the appropriate F&A rate based on project start date. Please contact your ORS Administrator for assistance. | J15: Travel | K15: These values may either be directly entered into the cell, or itemized using the "EQUIP TRAV PART COSTS" tab. Domestic and Foreign Travel must be budgeted within their respecitve categories.
A16: F&A Rate Base | B16: If the F&A Rate is the University Rate, please use MTDC (Modified Total Direct Costs). If the F&A rate is reduced, pluse use TDC (Total Direct Costs). Please contact your ORS Administrator for assistance. | J16: Particpant Support Costs | K16: These values may either be directly entered into the cell, or itemized using the "EQUIP TRAV PART COSTS" tab.
A17: Cost Share | B17: Select either "Yes" or "No" from the drop down menu. Type in the requried cost share rate in the YELLOW box. Please contact your ORS Administrator for assistance. | J17: Other Direct Costs | K17: These values may either be directly entered into the cell, or itemized using the "OTHER DIRECT COSTS" tab.
A18: ORS Deadline | B18: Enter in date 2 weeks prior to submission date. This is the date that the budget should be provided to your ORS Administrator. | J18: Total Summary Table | K18: These will automatically fill based on information enetered in tables above. Do not edit or alter these figures.
A19: Sponsor Due Date | B19: Type in the Due Date of the Proposal to the Sponsor.
A21: Personnel Expense Calculator
A22: PROJECT PERSONNEL TABLE
A23: Name and Role | B23: Type in Name and Role of the personnel working on the project
A24: Benefit Type | B24: Please select one from the drop down menu: Faculty/Staff, Retired Employees, Students.
A25: Monthly Salary | B25: Type in current or escalated monthly salary for each personnel as appropriate. Undergraduates should be calculated as "=hourly pay X 40 hours X 4.33 months" OR total requested amount for each budget period (ie: $4,000).
A26: Salary Annual Increase | B26: Type in Salary Annual Increase. 3% is the standard amount for salary.
A27: Insurance Type | B27: Please select one from the drop down menu: Employee, Employee and Spouse, Retired Employees, etc. Students should be listed as Average Part Time, unless otherwise noted on fringe report.
A28: Add Rows | B28: If additional rows are needed, rows must be added before moving on to subsequent tables.
A30: SALARY and EFFORT & FRINGE BENEFITS
A31: Name and Role | B31: These will automatically fill based on the "Project Personnel" Table. Do not edit or alter these figures.
A32: Years 1- Year 5 | B32: Type in the month and percent effort for each person per year. Graduate students are based on 100% effort. Undergraduate students should be based on "=# of weeks/4.33" and 50% effort OR if using a total amount (ie: $4,000), use 1 month at 100% effort for each budget period.
A33: Fringe Benefits | B33: These will automatically fill based on the "Project Personnel" Table. Do not edit or alter these figures.
A35: GRADUATE & DOCTORAL FEE TABLE
A36: Student Name | B36: Type in the student name, if known.
A37: College | B37: Select the College and Graduate Student Type from the drop down menu: WCOE - Doctoral, All Colleges except WCOE and RCOB - Doctoral, All Colleges excpet RCOB - Masters, RCOB - Doctoral, RCOB-Masters
A38: Credit | B38: This is the amount of hours per long semester (Fall and/or Spring) that the student will be enrolled. This is ususally 9 credit hours.
A39: Term | B39: Type in the term that the semester will begin. If study does not start on a normal term basis, please contact your ORS Administrator for assistance.

Sheet Cover Page
B4: Texas Tech University, Office of Research Services
B5: Project Budget Template
B8: Summary / Cover Page
B13: PI Name
B15: Project Title
B17: Sponsor
B19: Project Start Date | H19: Project End Dates
B21: F & A Rate | H21: Select
B23: Cost Share | D23: Is there cost share? | H23: Select
B25: Enter the Cost Share Rate in the Box Below
E26: 0
B28: Select F & A Rate Type
B30: Cost Share
B32: ORS Deadline
B34: Sponsor Due Date
B36: F & A Rates Types | D36: On Campus Instruction Rate | E36: 0.51 | G36: On Campus Research Rate | J36: Year | K36: F & A Rate
B37: On Campus Research Rate | D37: Off Campus Instruction Rate | E37: 0.26 | G37: 2022-09-01 | H37: 0.53 | J37: 1
B38: On Campus Instruction Rate | D38: Other Sponsor Rate | E38: 0.39 | G38: 2023-09-01 | H38: 0.53 | J38: 2
B39: Off Campus Rate | D39: Manual Rate | G39: 2024-09-01 | H39: 0.53 | J39: 3
B40: Other Sponsor Rate | J40: 4
B41: Manual Rate | J41: 5
B43: COMMENTS:

Sheet Personnel Expense Calculator
B12: Texas Tech University, Office of Research Services
B13: Project Budget Template
B18: PI Name | C18: =IF('Cover Page'!D13 <> "",'Cover Page'!D13," ") ->  | I18: Project Start Date | K18: =IF('Cover Page'!D19 <> "", 'Cover Page'!D19," " ) -> 
B19: Title | C19: =IF('Cover Page'!D15 <> "",'Cover Page'!D15," ") ->  | I19: Project End Date | K19: =IF('Cover Page'!J19 <> "", 'Cover Page'!J19," " ) -> 
B31: Project Summary | E31: Year 1 | G31: Year 2 | I31: Year 3 | K31: Year 4 | M31: Year 5 | O31: Total
B32: Total Direct Costs | E32: ='Detailed Budget'!D77 -> 0 | G32: ='Detailed Budget'!F77 -> 0 | I32: ='Detailed Budget'!H77 -> 0 | K32: ='Detailed Budget'!J77 -> 0 | M32: ='Detailed Budget'!L77 -> 0 | O32: ='Detailed Budget'!N77 -> 0
B33: Modified Total Direct Costs | E33: ='Detailed Budget'!D78 -> 0 | G33: ='Detailed Budget'!F78 -> 0 | I33: ='Detailed Budget'!H78 -> 0 | K33: ='Detailed Budget'!J78 -> 0 | M33: ='Detailed Budget'!L78 -> 0 | O33: ='Detailed Budget'!N78 -> 0
B34: TDC minus Subs | E34: ='Detailed Budget'!D79 -> 0 | G34: ='Detailed Budget'!F79 -> 0 | I34: ='Detailed Budget'!H79 -> 0 | K34: ='Detailed Budget'!J79 -> 0 | M34: ='Detailed Budget'!L79 -> 0 | O34: ='Detailed Budget'!N79 -> 0
B35: F&A | E35: ='Detailed Budget'!D80 -> 0 | G35: ='Detailed Budget'!F80 -> 0 | I35: ='Detailed Budget'!H80 -> 0 | K35: ='Detailed Budget'!J80 -> 0 | M35: ='Detailed Budget'!L80 -> 0 | O35: ='Detailed Budget'!N80 -> 0
B36: Total Costs | E36: ='Detailed Budget'!D81 -> 0 | G36: ='Detailed Budget'!F81 -> 0 | I36: ='Detailed Budget'!H81 -> 0 | K36: ='Detailed Budget'!J81 -> 0 | M36: ='Detailed Budget'!L81 -> 0 | O36: ='Detailed Budget'!N81 -> 0
B39: Project Personnel
B40: Project Personnel | E40: Salary and Fringe Calculation Information
B41: Name | D41: Role | E41: Benefit Type | G41: Monthly Salary | I41: Salary Annual Increase | L41: Insurance Type
B49: Salary and Effort
B50: Name | C50: Role | E50: Year 1 | H50: Year 2 | K50: Year 3 | N50: Year 4 | Q50: Year 5 | T50: Total
E51: Months | F51: Effort % | G51: Salary | H51: Months | I51: Effort % | J51: Salary | K51: Months | L51: Effort % | M51: Salary | N51: Months | O51: Effort % | P51: Salary | Q51: Months | R51: Effort % | S51: Salary
B52: =B42 -> 0 | C52: =D42 -> 0 | G52: =(G42*E52*F52) -> 0 | J52: =(G42*H52*I52)*(1+I42) -> 0 | M52: =(G42*K52*L52)*(1+I42)^2 -> 0 | P52: =(G42*N52*O52)*(1+I42)^3 -> 0 | S52: =(G42*Q52*R52)*(1+I42)^4 -> 0 | T52: =SUM(A82,G52,J52,M52,P52,S52) -> 0
B53: 0 | C53: 0 | G53: 0 | J53: 0 | M53: 0 | P53: 0 | S53: 0 | T53: =SUM(A83,G53,J53,M53,P53,S53) -> 0
B54: 0 | C54: 0 | G54: 0 | J54: 0 | M54: 0 | P54: 0 | S54: 0 | T54: =SUM(A84,G54,J54,M54,P54,S54) -> 0
B55: 0 | C55: 0 | G55: 0 | J55: 0 | M55: 0 | P55: 0 | S55: 0 | T55: =SUM(A85,G55,J55,M55,P55,S55) -> 0
B56: 0 | C56: 0 | G56: 0 | J56: 0 | M56: 0 | P56: 0 | S56: 0 | T56: =SUM(A86,G56,J56,M56,P56,S56) -> 0
B57: 0 | C57: 0 | G57: 0 | J57: 0 | M57: 0 | P57: 0 | S57: 0 | T57: =SUM(A86,G57,J57,M57,P57,S57) -> 0
B58: Total Salary | E58: =SUM(G52:G57) -> 0 | H58: =SUM(J52:J57) -> 0 | K58: =SUM(M52:M57) -> 0 | N58: =SUM(P52:P57) -> 0 | Q58: =SUM(S52:S57) -> 0 | T58: =SUM(T52:U57) -> 0
B60: Fringe Benefits
B61: Name | C61: Role | E61: Year 1 | G61: Year 2 | I61: Year 3 | K61: Year 4 | M61: Year 5 | O61: Total
B62: =B42 -> 0 | C62: =D42 -> 0 | E62: =G52*IF(E42=Reference!$D$11,Reference!$C$11,IF(E42=Reference!$D$12,Reference!$C$12,IF(E42=Reference!$D$13,Reference!$C$13,0)))+(F52*E52*IF(L42=Reference!$I$11,Reference!$H$11,IF(L42=Reference!$I$12,Reference!$H$12,IF(L42=Reference!$I$13,Reference!$H$13,IF(L42=Reference!$I$14,Reference!$H$14,IF(L42=Reference!$I$15,Reference!$H$15,IF(L42=Reference!$I$16,Reference!$H$16,IF(L42=Reference!$I$18,Reference!$H$18,IF(L42=Reference!$I$19,Reference!$H$19,IF(L42=Reference!$I$20,Reference!$H$20,IF(L42=Reference!I21,Reference!H21,IF(L42=Reference!$I$22,Reference!$H$22,IF(L42=Reference!$I$23,Reference!$H$23,0))))))))))))) -> 0 | G62: =IF(J52>0,J52*IF(E42=Reference!$D$11,Reference!$C$11,IF(E42=Reference!$D$12,Reference!$C$12,IF(E42=Reference!$D$13,Reference!$C$13,0)))+(I52*H52*(IF(L42=Reference!$I$11,Reference!$H$11,IF(L42=Reference!$I$12,Reference!$H$12,IF(L42=Reference!$I$13,Reference!$H$13,IF(L42=Reference!$I$14,Reference!$H$14,IF(L42=Reference!$I$15,Reference!$H$15,IF(L42=Reference!$I$16,Reference!$H$16,IF(L42=Reference!$I$18,Reference!$H$18,IF(L42=Reference!$I$19,Reference!$H$19,IF(L42=Reference!$I$20,Reference!$H$20,IF(L42=Reference!I21,Reference!H21,IF(L42=Reference!$I$22,Reference!$H$22,IF(L42=Reference!$I$23,Reference!$H$23,0))))))))))))*1.1)),0) -> 0 | I62: =IF(M52>0,M52*IF(E42=Reference!$D$11,Reference!$C$11,IF(E42=Reference!$D$12,Reference!$C$12,IF(E42=Reference!$D$13,Reference!$C$13,0)))+(L52*K52*((IF(L42=Reference!$I$11,Reference!$H$11,IF(L42=Reference!$I$12,Reference!$H$12,IF(L42=Reference!$I$13,Reference!$H$13,IF(L42=Reference!$I$14,Reference!$H$14,IF(L42=Reference!$I$15,Reference!$H$15,IF(L42=Reference!$I$16,Reference!$H$16,IF(L42=Reference!$I$18,Reference!$H$18,IF(L42=Reference!$I$19,Reference!$H$19,IF(L42=Reference!$I$20,Reference!$H$20,IF(L42=Reference!I21,Reference!H21,IF(L42=Reference!$I$22,Reference!$H$22,IF(L42=Reference!$I$23,Reference!$H$23,0))))))))))))*1.1)*1.1)),0) -> 0 | K62: =IF(P52>0,P52*IF(E42=Reference!$D$11,Reference!$C$11,IF(E42=Reference!$D$12,Reference!$C$12,IF(E42=Reference!$D$13,Reference!$C$13,0)))+(O52*N52*(((IF(L42=Reference!$I$11,Reference!$H$11,IF(L42=Reference!$I$12,Reference!$H$12,IF(L42=Reference!$I$13,Reference!$H$13,IF(L42=Reference!$I$14,Reference!$H$14,IF(L42=Reference!$I$15,Reference!$H$15,IF(L42=Reference!$I$16,Reference!$H$16,IF(L42=Reference!$I$18,Reference!$H$18,IF(L42=Reference!$I$19,Reference!$H$19,IF(L42=Reference!$I$20,Reference!$H$20,IF(L42=Reference!I21,Reference!H21,IF(L42=Reference!$I$22,Reference!$H$22,IF(L42=Reference!$I$23,Reference!$H$23,0))))))))))))*1.1)*1.1)*1.1)),0) -> 0 | M62: =IF(S52>0,S52*IF(E42=Reference!$D$11,Reference!$C$11,IF(E42=Reference!$D$12,Reference!$C$12,IF(E42=Reference!$D$13,Reference!$C$13,0)))+(Q52*R52*((((IF(L42=Reference!$I$11,Reference!$H$11,IF(L42=Reference!$I$12,Reference!$H$12,IF(L42=Reference!$I$13,Reference!$H$13,IF(L42=Reference!$I$14,Reference!$H$14,IF(L42=Reference!$I$15,Reference!$H$15,IF(L42=Reference!$I$16,Reference!$H$16,IF(L42=Reference!$I$18,Reference!$H$18,IF(L42=Reference!$I$19,Reference!$H$19,IF(L42=Reference!$I$20,Reference!$H$20,IF(L42=Reference!$I$21,Reference!$H$21,IF(L42=Reference!$I$22,Reference!$H$22,IF(L42=Reference!$I$23,Reference!$H$23,0))))))))))))*1.1)*1.1)*1.1)*1.1)),0) -> 0 | O62: =SUM(E62:N62) -> 0
B63: 0 | C63: 0 | E63: =G53*IF(E43=Reference!$D$11,Reference!$C$11,IF(E43=Reference!$D$12,Reference!$C$12,IF(E43=Reference!$D$13,Reference!$C$13,0)))+(F53*E53*IF(L43=Reference!$I$11,Reference!$H$11,IF(L43=Reference!$I$12,Reference!$H$12,IF(L43=Reference!$I$13,Reference!$H$13,IF(L43=Reference!$I$14,Reference!$H$14,IF(L43=Reference!$I$15,Reference!$H$15,IF(L43=Reference!$I$16,Reference!$H$16,IF(L43=Reference!$I$18,Reference!$H$18,IF(L43=Reference!$I$19,Reference!$H$19,IF(L43=Reference!$I$20,Reference!$H$20,IF(L43=Reference!I22,Reference!H22,IF(L43=Reference!$I$22,Reference!$H$22,IF(L43=Reference!$I$23,Reference!$H$23,0))))))))))))) -> 0 | G63: =IF(J53>0,J53*IF(E43=Reference!$D$11,Reference!$C$11,IF(E43=Reference!$D$12,Reference!$C$12,IF(E43=Reference!$D$13,Reference!$C$13,0)))+(I53*H53*(IF(L43=Reference!$I$11,Reference!$H$11,IF(L43=Reference!$I$12,Reference!$H$12,IF(L43=Reference!$I$13,Reference!$H$13,IF(L43=Reference!$I$14,Reference!$H$14,IF(L43=Reference!$I$15,Reference!$H$15,IF(L43=Reference!$I$16,Reference!$H$16,IF(L43=Reference!$I$18,Reference!$H$18,IF(L43=Reference!$I$19,Reference!$H$19,IF(L43=Reference!$I$20,Reference!$H$20,IF(L43=Reference!I22,Reference!H22,IF(L43=Reference!$I$22,Reference!$H$22,IF(L43=Reference!$I$23,Reference!$H$23,0))))))))))))*1.1)),0) -> 0 | I63: =IF(M53>0,M53*IF(E43=Reference!$D$11,Reference!$C$11,IF(E43=Reference!$D$12,Reference!$C$12,IF(E43=Reference!$D$13,Reference!$C$13,0)))+(L53*K53*((IF(L43=Reference!$I$11,Reference!$H$11,IF(L43=Reference!$I$12,Reference!$H$12,IF(L43=Reference!$I$13,Reference!$H$13,IF(L43=Reference!$I$14,Reference!$H$14,IF(L43=Reference!$I$15,Reference!$H$15,IF(L43=Reference!$I$16,Reference!$H$16,IF(L43=Reference!$I$18,Reference!$H$18,IF(L43=Reference!$I$19,Reference!$H$19,IF(L43=Reference!$I$20,Reference!$H$20,IF(L43=Reference!I22,Reference!H22,IF(L43=Reference!$I$22,Reference!$H$22,IF(L43=Reference!$I$23,Reference!$H$23,0))))))))))))*1.1)*1.1)),0) -> 0 | K63: =IF(P53>0,P53*IF(E43=Reference!$D$11,Reference!$C$11,IF(E43=Reference!$D$12,Reference!$C$12,IF(E43=Reference!$D$13,Reference!$C$13,0)))+(O53*N53*(((IF(L43=Reference!$I$11,Reference!$H$11,IF(L43=Reference!$I$12,Reference!$H$12,IF(L43=Reference!$I$13,Reference!$H$13,IF(L43=Reference!$I$14,Reference!$H$14,IF(L43=Reference!$I$15,Reference!$H$15,IF(L43=Reference!$I$16,Reference!$H$16,IF(L43=Reference!$I$18,Reference!$H$18,IF(L43=Reference!$I$19,Reference!$H$19,IF(L43=Reference!$I$20,Reference!$H$20,IF(L43=Reference!I22,Reference!H22,IF(L43=Reference!$I$22,Reference!$H$22,IF(L43=Reference!$I$23,Reference!$H$23,0))))))))))))*1.1)*1.1)*1.1)),0) -> 0 | M63: =IF(S53>0,S53*IF(E43=Reference!$D$11,Reference!$C$11,IF(E43=Reference!$D$12,Reference!$C$12,IF(E43=Reference!$D$13,Reference!$C$13,0)))+(Q53*R53*((((IF(L43=Reference!$I$11,Reference!$H$11,IF(L43=Reference!$I$12,Reference!$H$12,IF(L43=Reference!$I$13,Reference!$H$13,IF(L43=Reference!$I$14,Reference!$H$14,IF(L43=Reference!$I$15,Reference!$H$15,IF(L43=Reference!$I$16,Reference!$H$16,IF(L43=Reference!$I$18,Reference!$H$18,IF(L43=Reference!$I$19,Reference!$H$19,IF(L43=Reference!$I$20,Reference!$H$20,IF(L43=Reference!$I$21,Reference!$H$21,IF(L43=Reference!$I$22,Reference!$H$22,IF(L43=Reference!$I$23,Reference!$H$23,0))))))))))))*1.1)*1.1)*1.1)*1.1)),0) -> 0 | O63: 0
B64: 0 | C64: 0 | E64: =G54*IF(E44=Reference!$D$11,Reference!$C$11,IF(E44=Reference!$D$12,Reference!$C$12,IF(E44=Reference!$D$13,Reference!$C$13,0)))+(F54*E54*IF(L44=Reference!$I$11,Reference!$H$11,IF(L44=Reference!$I$12,Reference!$H$12,IF(L44=Reference!$I$13,Reference!$H$13,IF(L44=Reference!$I$14,Reference!$H$14,IF(L44=Reference!$I$15,Reference!$H$15,IF(L44=Reference!$I$16,Reference!$H$16,IF(L44=Reference!$I$18,Reference!$H$18,IF(L44=Reference!$I$19,Reference!$H$19,IF(L44=Reference!$I$20,Reference!$H$20,IF(L44=Reference!I23,Reference!H23,IF(L44=Reference!$I$22,Reference!$H$22,IF(L44=Reference!$I$23,Reference!$H$23,0))))))))))))) -> 0 | G64: =IF(J54>0,J54*IF(E44=Reference!$D$11,Reference!$C$11,IF(E44=Reference!$D$12,Reference!$C$12,IF(E44=Reference!$D$13,Reference!$C$13,0)))+(I54*H54*(IF(L44=Reference!$I$11,Reference!$H$11,IF(L44=Reference!$I$12,Reference!$H$12,IF(L44=Reference!$I$13,Reference!$H$13,IF(L44=Reference!$I$14,Reference!$H$14,IF(L44=Reference!$I$15,Reference!$H$15,IF(L44=Reference!$I$16,Reference!$H$16,IF(L44=Reference!$I$18,Reference!$H$18,IF(L44=Reference!$I$19,Reference!$H$19,IF(L44=Reference!$I$20,Reference!$H$20,IF(L44=Reference!I23,Reference!H23,IF(L44=Reference!$I$22,Reference!$H$22,IF(L44=Reference!$I$23,Reference!$H$23,0))))))))))))*1.1)),0) -> 0 | I64: =IF(M54>0,M54*IF(E44=Reference!$D$11,Reference!$C$11,IF(E44=Reference!$D$12,Reference!$C$12,IF(E44=Reference!$D$13,Reference!$C$13,0)))+(L54*K54*((IF(L44=Reference!$I$11,Reference!$H$11,IF(L44=Reference!$I$12,Reference!$H$12,IF(L44=Reference!$I$13,Reference!$H$13,IF(L44=Reference!$I$14,Reference!$H$14,IF(L44=Reference!$I$15,Reference!$H$15,IF(L44=Reference!$I$16,Reference!$H$16,IF(L44=Reference!$I$18,Reference!$H$18,IF(L44=Reference!$I$19,Reference!$H$19,IF(L44=Reference!$I$20,Reference!$H$20,IF(L44=Reference!I23,Reference!H23,IF(L44=Reference!$I$22,Reference!$H$22,IF(L44=Reference!$I$23,Reference!$H$23,0))))))))))))*1.1)*1.1)),0) -> 0 | K64: =IF(P54>0,P54*IF(E44=Reference!$D$11,Reference!$C$11,IF(E44=Reference!$D$12,Reference!$C$12,IF(E44=Reference!$D$13,Reference!$C$13,0)))+(O54*N54*(((IF(L44=Reference!$I$11,Reference!$H$11,IF(L44=Reference!$I$12,Reference!$H$12,IF(L44=Reference!$I$13,Reference!$H$13,IF(L44=Reference!$I$14,Reference!$H$14,IF(L44=Reference!$I$15,Reference!$H$15,IF(L44=Reference!$I$16,Reference!$H$16,IF(L44=Reference!$I$18,Reference!$H$18,IF(L44=Reference!$I$19,Reference!$H$19,IF(L44=Reference!$I$20,Reference!$H$20,IF(L44=Reference!I23,Reference!H23,IF(L44=Reference!$I$22,Reference!$H$22,IF(L44=Reference!$I$23,Reference!$H$23,0))))))))))))*1.1)*1.1)*1.1)),0) -> 0 | M64: =IF(S54>0,S54*IF(E44=Reference!$D$11,Reference!$C$11,IF(E44=Reference!$D$12,Reference!$C$12,IF(E44=Reference!$D$13,Reference!$C$13,0)))+(Q54*R54*((((IF(L44=Reference!$I$11,Reference!$H$11,IF(L44=Reference!$I$12,Reference!$H$12,IF(L44=Reference!$I$13,Reference!$H$13,IF(L44=Reference!$I$14,Reference!$H$14,IF(L44=Reference!$I$15,Reference!$H$15,IF(L44=Reference!$I$16,Reference!$H$16,IF(L44=Reference!$I$18,Reference!$H$18,IF(L44=Reference!$I$19,Reference!$H$19,IF(L44=Reference!$I$20,Reference!$H$20,IF(L44=Reference!$I$21,Reference!$H$21,IF(L44=Reference!$I$22,Reference!$H$22,IF(L44=Reference!$I$23,Reference!$H$23,0))))))))))))*1.1)*1.1)*1.1)*1.1)),0) -> 0 | O64: 0
B65: 0 | C65: 0 | E65: =G55*IF(E45=Reference!$D$11,Reference!$C$11,IF(E45=Reference!$D$12,Reference!$C$12,IF(E45=Reference!$D$13,Reference!$C$13,0)))+(F55*E55*IF(L45=Reference!$I$11,Reference!$H$11,IF(L45=Reference!$I$12,Reference!$H$12,IF(L45=Reference!$I$13,Reference!$H$13,IF(L45=Reference!$I$14,Reference!$H$14,IF(L45=Reference!$I$15,Reference!$H$15,IF(L45=Reference!$I$16,Reference!$H$16,IF(L45=Reference!$I$18,Reference!$H$18,IF(L45=Reference!$I$19,Reference!$H$19,IF(L45=Reference!$I$20,Reference!$H$20,IF(L45=Reference!I24,Reference!H24,IF(L45=Reference!$I$22,Reference!$H$22,IF(L45=Reference!$I$23,Reference!$H$23,0))))))))))))) -> 0 | G65: =IF(J55>0,J55*IF(E45=Reference!$D$11,Reference!$C$11,IF(E45=Reference!$D$12,Reference!$C$12,IF(E45=Reference!$D$13,Reference!$C$13,0)))+(I55*H55*(IF(L45=Reference!$I$11,Reference!$H$11,IF(L45=Reference!$I$12,Reference!$H$12,IF(L45=Reference!$I$13,Reference!$H$13,IF(L45=Reference!$I$14,Reference!$H$14,IF(L45=Reference!$I$15,Reference!$H$15,IF(L45=Reference!$I$16,Reference!$H$16,IF(L45=Reference!$I$18,Reference!$H$18,IF(L45=Reference!$I$19,Reference!$H$19,IF(L45=Reference!$I$20,Reference!$H$20,IF(L45=Reference!I24,Reference!H24,IF(L45=Reference!$I$22,Reference!$H$22,IF(L45=Reference!$I$23,Reference!$H$23,0))))))))))))*1.1)),0) -> 0 | I65: =IF(M55>0,M55*IF(E45=Reference!$D$11,Reference!$C$11,IF(E45=Reference!$D$12,Reference!$C$12,IF(E45=Reference!$D$13,Reference!$C$13,0)))+(L55*K55*((IF(L45=Reference!$I$11,Reference!$H$11,IF(L45=Reference!$I$12,Reference!$H$12,IF(L45=Reference!$I$13,Reference!$H$13,IF(L45=Reference!$I$14,Reference!$H$14,IF(L45=Reference!$I$15,Reference!$H$15,IF(L45=Reference!$I$16,Reference!$H$16,IF(L45=Reference!$I$18,Reference!$H$18,IF(L45=Reference!$I$19,Reference!$H$19,IF(L45=Reference!$I$20,Reference!$H$20,IF(L45=Reference!I24,Reference!H24,IF(L45=Reference!$I$22,Reference!$H$22,IF(L45=Reference!$I$23,Reference!$H$23,0))))))))))))*1.1)*1.1)),0) -> 0 | K65: =IF(P55>0,P55*IF(E45=Reference!$D$11,Reference!$C$11,IF(E45=Reference!$D$12,Reference!$C$12,IF(E45=Reference!$D$13,Reference!$C$13,0)))+(O55*N55*(((IF(L45=Reference!$I$11,Reference!$H$11,IF(L45=Reference!$I$12,Reference!$H$12,IF(L45=Reference!$I$13,Reference!$H$13,IF(L45=Reference!$I$14,Reference!$H$14,IF(L45=Reference!$I$15,Reference!$H$15,IF(L45=Reference!$I$16,Reference!$H$16,IF(L45=Reference!$I$18,Reference!$H$18,IF(L45=Reference!$I$19,Reference!$H$19,IF(L45=Reference!$I$20,Reference!$H$20,IF(L45=Reference!I24,Reference!H24,IF(L45=Reference!$I$22,Reference!$H$22,IF(L45=Reference!$I$23,Reference!$H$23,0))))))))))))*1.1)*1.1)*1.1)),0) -> 0 | M65: =IF(S55>0,S55*IF(E45=Reference!$D$11,Reference!$C$11,IF(E45=Reference!$D$12,Reference!$C$12,IF(E45=Reference!$D$13,Reference!$C$13,0)))+(Q55*R55*((((IF(L45=Reference!$I$11,Reference!$H$11,IF(L45=Reference!$I$12,Reference!$H$12,IF(L45=Reference!$I$13,Reference!$H$13,IF(L45=Reference!$I$14,Reference!$H$14,IF(L45=Reference!$I$15,Reference!$H$15,IF(L45=Reference!$I$16,Reference!$H$16,IF(L45=Reference!$I$18,Reference!$H$18,IF(L45=Reference!$I$19,Reference!$H$19,IF(L45=Reference!$I$20,Reference!$H$20,IF(L45=Reference!$I$21,Reference!$H$21,IF(L45=Reference!$I$22,Reference!$H$22,IF(L45=Reference!$I$23,Reference!$H$23,0))))))))))))*1.1)*1.1)*1.1)*1.1)),0) -> 0 | O65: 0
B66: 0 | C66: 0 | E66: =G56*IF(E46=Reference!$D$11,Reference!$C$11,IF(E46=Reference!$D$12,Reference!$C$12,IF(E46=Reference!$D$13,Reference!$C$13,0)))+(F56*E56*IF(L46=Reference!$I$11,Reference!$H$11,IF(L46=Reference!$I$12,Reference!$H$12,IF(L46=Reference!$I$13,Reference!$H$13,IF(L46=Reference!$I$14,Reference!$H$14,IF(L46=Reference!$I$15,Reference!$H$15,IF(L46=Reference!$I$16,Reference!$H$16,IF(L46=Reference!$I$18,Reference!$H$18,IF(L46=Reference!$I$19,Reference!$H$19,IF(L46=Reference!$I$20,Reference!$H$20,IF(L46=Reference!I25,Reference!H25,IF(L46=Reference!$I$22,Reference!$H$22,IF(L46=Reference!$I$23,Reference!$H$23,0))))))))))))) -> 0 | G66: =IF(J56>0,J56*IF(E46=Reference!$D$11,Reference!$C$11,IF(E46=Reference!$D$12,Reference!$C$12,IF(E46=Reference!$D$13,Reference!$C$13,0)))+(I56*H56*(IF(L46=Reference!$I$11,Reference!$H$11,IF(L46=Reference!$I$12,Reference!$H$12,IF(L46=Reference!$I$13,Reference!$H$13,IF(L46=Reference!$I$14,Reference!$H$14,IF(L46=Reference!$I$15,Reference!$H$15,IF(L46=Reference!$I$16,Reference!$H$16,IF(L46=Reference!$I$18,Reference!$H$18,IF(L46=Reference!$I$19,Reference!$H$19,IF(L46=Reference!$I$20,Reference!$H$20,IF(L46=Reference!I25,Reference!H25,IF(L46=Reference!$I$22,Reference!$H$22,IF(L46=Reference!$I$23,Reference!$H$23,0))))))))))))*1.1)),0) -> 0 | I66: =IF(M56>0,M56*IF(E46=Reference!$D$11,Reference!$C$11,IF(E46=Reference!$D$12,Reference!$C$12,IF(E46=Reference!$D$13,Reference!$C$13,0)))+(L56*K56*((IF(L46=Reference!$I$11,Reference!$H$11,IF(L46=Reference!$I$12,Reference!$H$12,IF(L46=Reference!$I$13,Reference!$H$13,IF(L46=Reference!$I$14,Reference!$H$14,IF(L46=Reference!$I$15,Reference!$H$15,IF(L46=Reference!$I$16,Reference!$H$16,IF(L46=Reference!$I$18,Reference!$H$18,IF(L46=Reference!$I$19,Reference!$H$19,IF(L46=Reference!$I$20,Reference!$H$20,IF(L46=Reference!I25,Reference!H25,IF(L46=Reference!$I$22,Reference!$H$22,IF(L46=Reference!$I$23,Reference!$H$23,0))))))))))))*1.1)*1.1)),0) -> 0 | K66: =IF(P56>0,P56*IF(E46=Reference!$D$11,Reference!$C$11,IF(E46=Reference!$D$12,Reference!$C$12,IF(E46=Reference!$D$13,Reference!$C$13,0)))+(O56*N56*(((IF(L46=Reference!$I$11,Reference!$H$11,IF(L46=Reference!$I$12,Reference!$H$12,IF(L46=Reference!$I$13,Reference!$H$13,IF(L46=Reference!$I$14,Reference!$H$14,IF(L46=Reference!$I$15,Reference!$H$15,IF(L46=Reference!$I$16,Reference!$H$16,IF(L46=Reference!$I$18,Reference!$H$18,IF(L46=Reference!$I$19,Reference!$H$19,IF(L46=Reference!$I$20,Reference!$H$20,IF(L46=Reference!I25,Reference!H25,IF(L46=Reference!$I$22,Reference!$H$22,IF(L46=Reference!$I$23,Reference!$H$23,0))))))))))))*1.1)*1.1)*1.1)),0) -> 0 | M66: =IF(S56>0,S56*IF(E46=Reference!$D$11,Reference!$C$11,IF(E46=Reference!$D$12,Reference!$C$12,IF(E46=Reference!$D$13,Reference!$C$13,0)))+(Q56*R56*((((IF(L46=Reference!$I$11,Reference!$H$11,IF(L46=Reference!$I$12,Reference!$H$12,IF(L46=Reference!$I$13,Reference!$H$13,IF(L46=Reference!$I$14,Reference!$H$14,IF(L46=Reference!$I$15,Reference!$H$15,IF(L46=Reference!$I$16,Reference!$H$16,IF(L46=Reference!$I$18,Reference!$H$18,IF(L46=Reference!$I$19,Reference!$H$19,IF(L46=Reference!$I$20,Reference!$H$20,IF(L46=Reference!$I$21,Reference!$H$21,IF(L46=Reference!$I$22,Reference!$H$22,IF(L46=Reference!$I$23,Reference!$H$23,0))))))))))))*1.1)*1.1)*1.1)*1.1)),0) -> 0 | O66: 0
B67: 0 | C67: 0 | E67: =G57*IF(E47=Reference!$D$11,Reference!$C$11,IF(E47=Reference!$D$12,Reference!$C$12,IF(E47=Reference!$D$13,Reference!$C$13,0)))+(F57*E57*IF(L47=Reference!$I$11,Reference!$H$11,IF(L47=Reference!$I$12,Reference!$H$12,IF(L47=Reference!$I$13,Reference!$H$13,IF(L47=Reference!$I$14,Reference!$H$14,IF(L47=Reference!$I$15,Reference!$H$15,IF(L47=Reference!$I$16,Reference!$H$16,IF(L47=Reference!$I$18,Reference!$H$18,IF(L47=Reference!$I$19,Reference!$H$19,IF(L47=Reference!$I$20,Reference!$H$20,IF(L47=Reference!I25,Reference!H25,IF(L47=Reference!$I$22,Reference!$H$22,IF(L47=Reference!$I$23,Reference!$H$23,0))))))))))))) -> 0 | G67: =IF(J57>0,J57*IF(E47=Reference!$D$11,Reference!$C$11,IF(E47=Reference!$D$12,Reference!$C$12,IF(E47=Reference!$D$13,Reference!$C$13,0)))+(I57*H57*(IF(L47=Reference!$I$11,Reference!$H$11,IF(L47=Reference!$I$12,Reference!$H$12,IF(L47=Reference!$I$13,Reference!$H$13,IF(L47=Reference!$I$14,Reference!$H$14,IF(L47=Reference!$I$15,Reference!$H$15,IF(L47=Reference!$I$16,Reference!$H$16,IF(L47=Reference!$I$18,Reference!$H$18,IF(L47=Reference!$I$19,Reference!$H$19,IF(L47=Reference!$I$20,Reference!$H$20,IF(L47=Reference!I26,Reference!H26,IF(L47=Reference!$I$22,Reference!$H$22,IF(L47=Reference!$I$23,Reference!$H$23,0))))))))))))*1.1)),0) -> 0 | I67: =IF(M57>0,M57*IF(E47=Reference!$D$11,Reference!$C$11,IF(E47=Reference!$D$12,Reference!$C$12,IF(E47=Reference!$D$13,Reference!$C$13,0)))+(L57*K57*((IF(L47=Reference!$I$11,Reference!$H$11,IF(L47=Reference!$I$12,Reference!$H$12,IF(L47=Reference!$I$13,Reference!$H$13,IF(L47=Reference!$I$14,Reference!$H$14,IF(L47=Reference!$I$15,Reference!$H$15,IF(L47=Reference!$I$16,Reference!$H$16,IF(L47=Reference!$I$18,Reference!$H$18,IF(L47=Reference!$I$19,Reference!$H$19,IF(L47=Reference!$I$20,Reference!$H$20,IF(L47=Reference!I26,Reference!H26,IF(L47=Reference!$I$22,Reference!$H$22,IF(L47=Reference!$I$23,Reference!$H$23,0))))))))))))*1.1)*1.1)),0) -> 0 | K67: =IF(P57>0,P57*IF(E47=Reference!$D$11,Reference!$C$11,IF(E47=Reference!$D$12,Reference!$C$12,IF(E47=Reference!$D$13,Reference!$C$13,0)))+(O57*N57*(((IF(L47=Reference!$I$11,Reference!$H$11,IF(L47=Reference!$I$12,Reference!$H$12,IF(L47=Reference!$I$13,Reference!$H$13,IF(L47=Reference!$I$14,Reference!$H$14,IF(L47=Reference!$I$15,Reference!$H$15,IF(L47=Reference!$I$16,Reference!$H$16,IF(L47=Reference!$I$18,Reference!$H$18,IF(L47=Reference!$I$19,Reference!$H$19,IF(L47=Reference!$I$20,Reference!$H$20,IF(L47=Reference!I26,Reference!H26,IF(L47=Reference!$I$22,Reference!$H$22,IF(L47=Reference!$I$23,Reference!$H$23,0))))))))))))*1.1)*1.1)*1.1)),0) -> 0 | M67: =IF(S57>0,S57*IF(E47=Reference!$D$11,Reference!$C$11,IF(E47=Reference!$D$12,Reference!$C$12,IF(E47=Reference!$D$13,Reference!$C$13,0)))+(Q57*R57*((((IF(L47=Reference!$I$11,Reference!$H$11,IF(L47=Reference!$I$12,Reference!$H$12,IF(L47=Reference!$I$13,Reference!$H$13,IF(L47=Reference!$I$14,Reference!$H$14,IF(L47=Reference!$I$15,Reference!$H$15,IF(L47=Reference!$I$16,Reference!$H$16,IF(L47=Reference!$I$18,Reference!$H$18,IF(L47=Reference!$I$19,Reference!$H$19,IF(L47=Reference!$I$20,Reference!$H$20,IF(L47=Reference!$I$21,Reference!$H$21,IF(L47=Reference!$I$22,Reference!$H$22,IF(L47=Reference!$I$23,Reference!$H$23,0))))))))))))*1.1)*1.1)*1.1)*1.1)),0) -> 0 | O67: 0
B68: Total Fringe | E68: =SUM(E62:F67) -> 0 | G68: =SUM(G62:H67) -> 0 | I68: =SUM(I62:J67) -> 0 | K68: =SUM(K62:L67) -> 0 | M68: =SUM(M62:N67) -> 0 | O68: =SUM(O62:P67) -> 0
B70: Total Salary and Fringe | E70: =SUM(E68,E58) -> 0 | G70: =SUM(G68,H58) -> 0 | I70: =SUM(K58,I68) -> 0 | K70: =SUM(K68,N58) -> 0 | M70: =SUM(Q58,M68) -> 0 | O70: =SUM(O68,T58) -> 0
B73: Graduate and Doctoral Students Fees
B74: Student Name | D74: College | H74: Credit | I74: Term | K74: Year1 | M74: Year2 | O74: Year3 | Q74: Year4 | S74: Year5 | U74: Total
K75: =IF(AND(D75=Reference!$D$26,H75="9/9/3/3"),IF(I75=Reference!$C$27,Reference!$D$27,IF(I75=Reference!$C$28,Reference!$D$28,IF(I75=Reference!$C$29,Reference!$D$29,IF(I75=Reference!$C$30,Reference!$D$30,IF(I75=Reference!$C$31,Reference!$D$31,IF(I75=Reference!$C$32,Reference!$D32,0)))))),IF(AND(D75=Reference!$F$26,H75="9/9/3/3"),IF(I75=Reference!$C$27,Reference!$F$27,IF(I75=Reference!$C$28,Reference!$F$28,IF(I75=Reference!$C$29,Reference!$F$29,IF(I75=Reference!$C$30,Reference!$F$30,IF(I75=Reference!$C$31,Reference!$F$31,IF(I75=Reference!$C$32,Reference!$F$32,0)))))),IF(AND(D75=Reference!$H$26,H75="9/9/3/3"),IF(I75=Reference!$C$27,Reference!$H$27,IF(I75=Reference!$C$28,Reference!$H$28,IF(I75=Reference!$C$29,Reference!$H$29,IF(I75=Reference!$C$30,Reference!$H$30,IF(I75=Reference!$C$31,Reference!$H$31,IF(I75=Reference!$C$32,Reference!$H$32,0)))))),IF(AND(D75=Reference!$J$26,H75="9/9/3/3"),IF(I75=Reference!$C$27,Reference!$J$27,IF(I75=Reference!$C$28,Reference!$J$28,IF(I75=Reference!$C$29,Reference!$J$29,IF(I75=Reference!$C$30,Reference!$J$30,IF(I75=Reference!$C$31,Reference!$J$31,IF(I75=Reference!$C$32,Reference!$J$32,0)))))),IF(AND(D75=Reference!$M$26,H75="9/9/3/3"),IF(I75=Reference!$C$27,Reference!$M$27,IF(I75=Reference!$C$28,Reference!$M$28,IF(I75=Reference!$C$29,Reference!$M$29,IF(I75=Reference!$C$30,Reference!$M$30,IF(I75=Reference!$C$31,Reference!$M$31,IF(I75=Reference!$C$32,Reference!$M$32,0)))))),IF(AND(D75=Reference!$O$26,H75="9/9/3/3"),IF(I75=Reference!$C$27,Reference!$O$27,IF(I75=Reference!$C$28,Reference!$O$28,IF(I75=Reference!$C$29,Reference!$O$29,IF(I75=Reference!$C$30,Reference!$O$30,IF(I75=Reference!$C$31,Reference!$O$31,IF(I75=Reference!$C$32,Reference!$O$32,0)))))),0)))))) -> 0 | M75: =K75*(1+Reference!$C$18) -> 0 | O75: =K75*(1+Reference!$C$18)^2 -> 0 | Q75: =K75*(1+Reference!$C$18)^3 -> 0 | S75: =K75*(1+Reference!$C$18)^4 -> 0 | U75: =SUM(K75:T75) -> 0
K76: =IF(AND(D76=Reference!$D$26,H76="9/9/3/3"),IF(I76=Reference!$C$27,Reference!$D$27,IF(I76=Reference!$C$28,Reference!$D$28,IF(I76=Reference!$C$29,Reference!$D$29,IF(I76=Reference!$C$30,Reference!$D$30,IF(I76=Reference!$C$31,Reference!$D$31,IF(I76=Reference!$C$32,Reference!$D32,0)))))),IF(AND(D76=Reference!$F$26,H76="9/9/3/3"),IF(I76=Reference!$C$27,Reference!$F$27,IF(I76=Reference!$C$28,Reference!$F$28,IF(I76=Reference!$C$29,Reference!$F$29,IF(I76=Reference!$C$30,Reference!$F$30,IF(I76=Reference!$C$31,Reference!$F$31,IF(I76=Reference!$C$32,Reference!$F$32,0)))))),IF(AND(D76=Reference!$H$26,H76="9/9/3/3"),IF(I76=Reference!$C$27,Reference!$H$27,IF(I76=Reference!$C$28,Reference!$H$28,IF(I76=Reference!$C$29,Reference!$H$29,IF(I76=Reference!$C$30,Reference!$H$30,IF(I76=Reference!$C$31,Reference!$H$31,IF(I76=Reference!$C$32,Reference!$H$32,0)))))),IF(AND(D76=Reference!$J$26,H76="9/9/3/3"),IF(I76=Reference!$C$27,Reference!$J$27,IF(I76=Reference!$C$28,Reference!$J$28,IF(I76=Reference!$C$29,Reference!$J$29,IF(I76=Reference!$C$30,Reference!$J$30,IF(I76=Reference!$C$31,Reference!$J$31,IF(I76=Reference!$C$32,Reference!$J$32,0)))))),IF(AND(D76=Reference!$M$26,H76="9/9/3/3"),IF(I76=Reference!$C$27,Reference!$M$27,IF(I76=Reference!$C$28,Reference!$M$28,IF(I76=Reference!$C$29,Reference!$M$29,IF(I76=Reference!$C$30,Reference!$M$30,IF(I76=Reference!$C$31,Reference!$M$31,IF(I76=Reference!$C$32,Reference!$M$32,0)))))),IF(AND(D76=Reference!$O$26,H76="9/9/3/3"),IF(I76=Reference!$C$27,Reference!$O$27,IF(I76=Reference!$C$28,Reference!$O$28,IF(I76=Reference!$C$29,Reference!$O$29,IF(I76=Reference!$C$30,Reference!$O$30,IF(I76=Reference!$C$31,Reference!$O$31,IF(I76=Reference!$C$32,Reference!$O$32,0)))))),0)))))) -> 0 | M76: =K76*(1+Reference!$C$18) -> 0 | O76: =K76*(1+Reference!$C$18)^2 -> 0 | Q76: =K76*(1+Reference!$C$18)^3 -> 0 | S76: =K76*(1+Reference!$C$18)^4 -> 0 | U76: 0
K77: =IF(AND(D77=Reference!$D$26,H77="9/9/3/3"),IF(#REF!=Reference!$C$27,Reference!$D$27,IF(#REF!=Reference!$C$28,Reference!$D$28,IF(#REF!=Reference!$C$29,Reference!$D$29,IF(#REF!=Reference!$C$30,Reference!$D$30,IF(#REF!=Reference!$C$31,Reference!$D$31,IF(#REF!=Reference!$C$32,Reference!$D32,0)))))),IF(AND(D77=Reference!$F$26,H77="9/9/3/3"),IF(#REF!=Reference!$C$27,Reference!$F$27,IF(#REF!=Reference!$C$28,Reference!$F$28,IF(#REF!=Reference!$C$29,Reference!$F$29,IF(#REF!=Reference!$C$30,Reference!$F$30,IF(#REF!=Reference!$C$31,Reference!$F$31,IF(#REF!=Reference!$C$32,Reference!$F$32,0)))))),IF(AND(D77=Reference!$H$26,H77="9/9/3/3"),IF(#REF!=Reference!$C$27,Reference!$H$27,IF(#REF!=Reference!$C$28,Reference!$H$28,IF(#REF!=Reference!$C$29,Reference!$H$29,IF(#REF!=Reference!$C$30,Reference!$H$30,IF(#REF!=Reference!$C$31,Reference!$H$31,IF(#REF!=Reference!$C$32,Reference!$H$32,0)))))),IF(AND(D77=Reference!$J$26,H77="9/9/3/3"),IF(#REF!=Reference!$C$27,Reference!$J$27,IF(#REF!=Reference!$C$28,Reference!$J$28,IF(#REF!=Reference!$C$29,Reference!$J$29,IF(#REF!=Reference!$C$30,Reference!$J$30,IF(#REF!=Reference!$C$31,Reference!$J$31,IF(#REF!=Reference!$C$32,Reference!$J$32,0)))))),IF(AND(D77=Reference!$M$26,H77="9/9/3/3"),IF(#REF!=Reference!$C$27,Reference!$M$27,IF(#REF!=Reference!$C$28,Reference!$M$28,IF(#REF!=Reference!$C$29,Reference!$M$29,IF(#REF!=Reference!$C$30,Reference!$M$30,IF(#REF!=Reference!$C$31,Reference!$M$31,IF(#REF!=Reference!$C$32,Reference!$M$32,0)))))),IF(AND(D77=Reference!$O$26,H77="9/9/3/3"),IF(#REF!=Reference!$C$27,Reference!$O$27,IF(#REF!=Reference!$C$28,Reference!$O$28,IF(#REF!=Reference!$C$29,Reference!$O$29,IF(#REF!=Reference!$C$30,Reference!$O$30,IF(#REF!=Reference!$C$31,Reference!$O$31,IF(#REF!=Reference!$C$32,Reference!$O$32,0)))))),0)))))) -> 0 | M77: =K77*(1+Reference!$C$18) -> 0 | O77: =K77*(1+Reference!$C$18)^2 -> 0 | Q77: =K77*(1+Reference!$C$18)^3 -> 0 | S77: =K77*(1+Reference!$C$18)^4 -> 0 | U77: 0
K78: =IF(AND(D78=Reference!$D$26,H78="9/9/3/3"),IF(I77=Reference!$C$27,Reference!$D$27,IF(I77=Reference!$C$28,Reference!$D$28,IF(I77=Reference!$C$29,Reference!$D$29,IF(I77=Reference!$C$30,Reference!$D$30,IF(I77=Reference!$C$31,Reference!$D$31,IF(I77=Reference!$C$32,Reference!$D32,0)))))),IF(AND(D78=Reference!$F$26,H78="9/9/3/3"),IF(I77=Reference!$C$27,Reference!$F$27,IF(I77=Reference!$C$28,Reference!$F$28,IF(I77=Reference!$C$29,Reference!$F$29,IF(I77=Reference!$C$30,Reference!$F$30,IF(I77=Reference!$C$31,Reference!$F$31,IF(I77=Reference!$C$32,Reference!$F$32,0)))))),IF(AND(D78=Reference!$H$26,H78="9/9/3/3"),IF(I77=Reference!$C$27,Reference!$H$27,IF(I77=Reference!$C$28,Reference!$H$28,IF(I77=Reference!$C$29,Reference!$H$29,IF(I77=Reference!$C$30,Reference!$H$30,IF(I77=Reference!$C$31,Reference!$H$31,IF(I77=Reference!$C$32,Reference!$H$32,0)))))),IF(AND(D78=Reference!$J$26,H78="9/9/3/3"),IF(I77=Reference!$C$27,Reference!$J$27,IF(I77=Reference!$C$28,Reference!$J$28,IF(I77=Reference!$C$29,Reference!$J$29,IF(I77=Reference!$C$30,Reference!$J$30,IF(I77=Reference!$C$31,Reference!$J$31,IF(I77=Reference!$C$32,Reference!$J$32,0)))))),IF(AND(D78=Reference!$M$26,H78="9/9/3/3"),IF(I77=Reference!$C$27,Reference!$M$27,IF(I77=Reference!$C$28,Reference!$M$28,IF(I77=Reference!$C$29,Reference!$M$29,IF(I77=Reference!$C$30,Reference!$M$30,IF(I77=Reference!$C$31,Reference!$M$31,IF(I77=Reference!$C$32,Reference!$M$32,0)))))),IF(AND(D78=Reference!$O$26,H78="9/9/3/3"),IF(I77=Reference!$C$27,Reference!$O$27,IF(I77=Reference!$C$28,Reference!$O$28,IF(I77=Reference!$C$29,Reference!$O$29,IF(I77=Reference!$C$30,Reference!$O$30,IF(I77=Reference!$C$31,Reference!$O$31,IF(I77=Reference!$C$32,Reference!$O$32,0)))))),0)))))) -> 0 | M78: =K78*(1+Reference!$C$18) -> 0 | O78: =K78*(1+Reference!$C$18)^2 -> 0 | Q78: =K78*(1+Reference!$C$18)^3 -> 0 | S78: =K78*(1+Reference!$C$18)^4 -> 0 | U78: 0
K79: =IF(AND(D79=Reference!$D$26,H79="9/9/3/3"),IF(I79=Reference!$C$27,Reference!$D$27,IF(I79=Reference!$C$28,Reference!$D$28,IF(I79=Reference!$C$29,Reference!$D$29,IF(I79=Reference!$C$30,Reference!$D$30,IF(I79=Reference!$C$31,Reference!$D$31,IF(I79=Reference!$C$32,Reference!$D32,0)))))),IF(AND(D79=Reference!$F$26,H79="9/9/3/3"),IF(I79=Reference!$C$27,Reference!$F$27,IF(I79=Reference!$C$28,Reference!$F$28,IF(I79=Reference!$C$29,Reference!$F$29,IF(I79=Reference!$C$30,Reference!$F$30,IF(I79=Reference!$C$31,Reference!$F$31,IF(I79=Reference!$C$32,Reference!$F$32,0)))))),IF(AND(D79=Reference!$H$26,H79="9/9/3/3"),IF(I79=Reference!$C$27,Reference!$H$27,IF(I79=Reference!$C$28,Reference!$H$28,IF(I79=Reference!$C$29,Reference!$H$29,IF(I79=Reference!$C$30,Reference!$H$30,IF(I79=Reference!$C$31,Reference!$H$31,IF(I79=Reference!$C$32,Reference!$H$32,0)))))),IF(AND(D79=Reference!$J$26,H79="9/9/3/3"),IF(I79=Reference!$C$27,Reference!$J$27,IF(I79=Reference!$C$28,Reference!$J$28,IF(I79=Reference!$C$29,Reference!$J$29,IF(I79=Reference!$C$30,Reference!$J$30,IF(I79=Reference!$C$31,Reference!$J$31,IF(I79=Reference!$C$32,Reference!$J$32,0)))))),IF(AND(D79=Reference!$M$26,H79="9/9/3/3"),IF(I79=Reference!$C$27,Reference!$M$27,IF(I79=Reference!$C$28,Reference!$M$28,IF(I79=Reference!$C$29,Reference!$M$29,IF(I79=Reference!$C$30,Reference!$M$30,IF(I79=Reference!$C$31,Reference!$M$31,IF(I79=Reference!$C$32,Reference!$M$32,0)))))),IF(AND(D79=Reference!$O$26,H79="9/9/3/3"),IF(I79=Reference!$C$27,Reference!$O$27,IF(I79=Reference!$C$28,Reference!$O$28,IF(I79=Reference!$C$29,Reference!$O$29,IF(I79=Reference!$C$30,Reference!$O$30,IF(I79=Reference!$C$31,Reference!$O$31,IF(I79=Reference!$C$32,Reference!$O$32,0)))))),0)))))) -> 0 | M79: =K79*(1+Reference!$C$18) -> 0 | O79: =K79*(1+Reference!$C$18)^2 -> 0 | Q79: =K79*(1+Reference!$C$18)^3 -> 0 | S79: =K79*(1+Reference!$C$18)^4 -> 0 | U79: 0
K80: =IF(AND(D80=Reference!$D$26,H80="9/9/3/3"),IF(I80=Reference!$C$27,Reference!$D$27,IF(I80=Reference!$C$28,Reference!$D$28,IF(I80=Reference!$C$29,Reference!$D$29,IF(I80=Reference!$C$30,Reference!$D$30,IF(I80=Reference!$C$31,Reference!$D$31,IF(I80=Reference!$C$32,Reference!$D32,0)))))),IF(AND(D80=Reference!$F$26,H80="9/9/3/3"),IF(I80=Reference!$C$27,Reference!$F$27,IF(I80=Reference!$C$28,Reference!$F$28,IF(I80=Reference!$C$29,Reference!$F$29,IF(I80=Reference!$C$30,Reference!$F$30,IF(I80=Reference!$C$31,Reference!$F$31,IF(I80=Reference!$C$32,Reference!$F$32,0)))))),IF(AND(D80=Reference!$H$26,H80="9/9/3/3"),IF(I80=Reference!$C$27,Reference!$H$27,IF(I80=Reference!$C$28,Reference!$H$28,IF(I80=Reference!$C$29,Reference!$H$29,IF(I80=Reference!$C$30,Reference!$H$30,IF(I80=Reference!$C$31,Reference!$H$31,IF(I80=Reference!$C$32,Reference!$H$32,0)))))),IF(AND(D80=Reference!$J$26,H80="9/9/3/3"),IF(I80=Reference!$C$27,Reference!$J$27,IF(I80=Reference!$C$28,Reference!$J$28,IF(I80=Reference!$C$29,Reference!$J$29,IF(I80=Reference!$C$30,Reference!$J$30,IF(I80=Reference!$C$31,Reference!$J$31,IF(I80=Reference!$C$32,Reference!$J$32,0)))))),IF(AND(D80=Reference!$M$26,H80="9/9/3/3"),IF(I80=Reference!$C$27,Reference!$M$27,IF(I80=Reference!$C$28,Reference!$M$28,IF(I80=Reference!$C$29,Reference!$M$29,IF(I80=Reference!$C$30,Reference!$M$30,IF(I80=Reference!$C$31,Reference!$M$31,IF(I80=Reference!$C$32,Reference!$M$32,0)))))),IF(AND(D80=Reference!$O$26,H80="9/9/3/3"),IF(I80=Reference!$C$27,Reference!$O$27,IF(I80=Reference!$C$28,Reference!$O$28,IF(I80=Reference!$C$29,Reference!$O$29,IF(I80=Reference!$C$30,Reference!$O$30,IF(I80=Reference!$C$31,Reference!$O$31,IF(I80=Reference!$C$32,Reference!$O$32,0)))))),0)))))) -> 0 | M80: =K80*(1+Reference!$C$18) -> 0 | O80: =K80*(1+Reference!$C$18)^2 -> 0 | Q80: =K80*(1+Reference!$C$18)^3 -> 0 | S80: =K80*(1+Reference!$C$18)^4 -> 0 | U80: 0
G81: TOTAL | K81: =SUM(K75:L80) -> 0 | M81: =SUM(M75:N80) -> 0 | O81: =SUM(O75:P80) -> 0 | Q81: =SUM(Q75:R80) -> 0 | S81: =SUM(S75:T80) -> 0 | U81: =SUM(U75:W80) -> 0
B83: COMMENTS:

Sheet Detailed Budget
A7: Texas Tech University, Office of Research Services: Project Budget Detail
A15: PI Name | C15: =IF('Cover Page'!D13 <> "",'Cover Page'!D13," ") ->  | I15: Sponsor | K15: =IF('Cover Page'!D17 <> "", 'Cover Page'!D17," " ) -> 
A17: Title | C17: =IF('Cover Page'!D15 <> "",'Cover Page'!D15," " ) ->  | I17: Project Start Date | K17: =IF('Cover Page'!D19 <> "", 'Cover Page'!D19," " ) -> 
I18: Project End Date | K18: =IF('Cover Page'!J19 <> "", 'Cover Page'!J19," " ) -> 
A20: Personnel Salary | D20: Year 1 | F20: Year 2 | H20: Year 3 | J20: Year 4 | L20: Year 5 | N20: Total
A21: Name | C21: Role
A22: ='Personnel Expense Calculator'!B52 -> 0 | C22: ='Personnel Expense Calculator'!C52:D52 -> 0 | D22: =ROUND('Personnel Expense Calculator'!G52,0) -> 0 | F22: =ROUND('Personnel Expense Calculator'!J52,0) -> 0 | H22: =ROUND('Personnel Expense Calculator'!M52,0) -> 0 | J22: =ROUND('Personnel Expense Calculator'!P52,0) -> 0 | L22: =ROUND('Personnel Expense Calculator'!S52,0) -> 0 | N22: =SUM(D22:M22) -> 0
A23: ='Personnel Expense Calculator'!B53 -> 0 | C23: ='Personnel Expense Calculator'!C53:D53 -> 0 | D23: =ROUND('Personnel Expense Calculator'!G53,0) -> 0 | F23: =ROUND('Personnel Expense Calculator'!J53,0) -> 0 | H23: =ROUND('Personnel Expense Calculator'!M53,0) -> 0 | J23: =ROUND('Personnel Expense Calculator'!P53,0) -> 0 | L23: =ROUND('Personnel Expense Calculator'!S53,0) -> 0 | N23: =SUM(D23:M23) -> 0
A24: ='Personnel Expense Calculator'!B54 -> 0 | C24: ='Personnel Expense Calculator'!C54:D54 -> 0 | D24: =ROUND('Personnel Expense Calculator'!G54,0) -> 0 | F24: =ROUND('Personnel Expense Calculator'!J54,0) -> 0 | H24: =ROUND('Personnel Expense Calculator'!M54,0) -> 0 | J24: =ROUND('Personnel Expense Calculator'!P54,0) -> 0 | L24: =ROUND('Personnel Expense Calculator'!S54,0) -> 0 | N24: 0
A25: ='Personnel Expense Calculator'!B55 -> 0 | C25: ='Personnel Expense Calculator'!C55:D55 -> 0 | D25: =ROUND('Personnel Expense Calculator'!G55,0) -> 0 | F25: =ROUND('Personnel Expense Calculator'!J55,0) -> 0 | H25: =ROUND('Personnel Expense Calculator'!M55,0) -> 0 | J25: =ROUND('Personnel Expense Calculator'!P55,0) -> 0 | L25: =ROUND('Personnel Expense Calculator'!S55,0) -> 0 | N25: 0
A26: ='Personnel Expense Calculator'!B56 -> 0 | C26: ='Personnel Expense Calculator'!C56:D56 -> 0 | D26: =ROUND('Personnel Expense Calculator'!G56,0) -> 0 | F26: =ROUND('Personnel Expense Calculator'!J56,0) -> 0 | H26: =ROUND('Personnel Expense Calculator'!M56,0) -> 0 | J26: =ROUND('Personnel Expense Calculator'!P56,0) -> 0 | L26: =ROUND('Personnel Expense Calculator'!S56,0) -> 0 | N26: 0
A27: ='Personnel Expense Calculator'!B57 -> 0 | C27: ='Personnel Expense Calculator'!C57:D57 -> 0 | D27: =ROUND('Personnel Expense Calculator'!G57,0) -> 0 | F27: =ROUND('Personnel Expense Calculator'!J57,0) -> 0 | H27: =ROUND('Personnel Expense Calculator'!M57,0) -> 0 | J27: =ROUND('Personnel Expense Calculator'!P57,0) -> 0 | L27: =ROUND('Personnel Expense Calculator'!S57,0) -> 0 | N27: =SUM(D27:M27) -> 0
A28: Total Salary | D28: =SUM(D22:E27) -> 0 | F28: =SUM(F22:G27) -> 0 | H28: =SUM(H22:I27) -> 0 | J28: =SUM(J22:K27) -> 0 | L28: =SUM(L22:M27) -> 0 | N28: =SUM(N22:O27) -> 0
A33: Personnel Fringe Benefits | N33: Total
A34: ='Personnel Expense Calculator'!B62 -> 0 | C34: ='Personnel Expense Calculator'!C62:D62 -> 0 | D34: ='Personnel Expense Calculator'!E62 -> 0 | F34: ='Personnel Expense Calculator'!G62 -> 0 | H34: ='Personnel Expense Calculator'!I62 -> 0 | J34: ='Personnel Expense Calculator'!K62 -> 0 | L34: ='Personnel Expense Calculator'!M62 -> 0 | N34: =SUM(D34:M34) -> 0
A35: ='Personnel Expense Calculator'!B63 -> 0 | C35: ='Personnel Expense Calculator'!C63:D63 -> 0 | D35: ='Personnel Expense Calculator'!E63 -> 0 | F35: ='Personnel Expense Calculator'!G63 -> 0 | H35: ='Personnel Expense Calculator'!I63 -> 0 | J35: ='Personnel Expense Calculator'!K63 -> 0 | L35: ='Personnel Expense Calculator'!M63 -> 0 | N35: =SUM(D35:M35) -> 0
A36: ='Personnel Expense Calculator'!B64 -> 0 | C36: ='Personnel Expense Calculator'!C64:D64 -> 0 | D36: ='Personnel Expense Calculator'!E64 -> 0 | F36: ='Personnel Expense Calculator'!G64 -> 0 | H36: ='Personnel Expense Calculator'!I64 -> 0 | J36: ='Personnel Expense Calculator'!K64 -> 0 | L36: ='Personnel Expense Calculator'!M64 -> 0 | N36: 0
A37: ='Personnel Expense Calculator'!B65 -> 0 | C37: ='Personnel Expense Calculator'!C65:D65 -> 0 | D37: ='Personnel Expense Calculator'!E65 -> 0 | F37: ='Personnel Expense Calculator'!G65 -> 0 | H37: ='Personnel Expense Calculator'!I65 -> 0 | J37: ='Personnel Expense Calculator'!K65 -> 0 | L37: ='Personnel Expense Calculator'!M65 -> 0 | N37: 0
A38: ='Personnel Expense Calculator'!B66 -> 0 | C38: ='Personnel Expense Calculator'!C66:D66 -> 0 | D38: ='Personnel Expense Calculator'!E66 -> 0 | F38: ='Personnel Expense Calculator'!G66 -> 0 | H38: ='Personnel Expense Calculator'!I66 -> 0 | J38: ='Personnel Expense Calculator'!K66 -> 0 | L38: ='Personnel Expense Calculator'!M66 -> 0 | N38: 0
A39: ='Personnel Expense Calculator'!B67 -> 0 | C39: ='Personnel Expense Calculator'!C67:D67 -> 0 | D39: ='Personnel Expense Calculator'!E67 -> 0 | F39: ='Personnel Expense Calculator'!G67 -> 0 | H39: ='Personnel Expense Calculator'!I67 -> 0 | J39: ='Personnel Expense Calculator'!K67 -> 0 | L39: ='Personnel Expense Calculator'!M67 -> 0 | N39: =SUM(D39:M39) -> 0
A40: Fringe Benefits | D40: =SUM(D34:E39) -> 0 | F40: =SUM(F34:G39) -> 0 | H40: =SUM(H34:I39) -> 0 | J40: =SUM(J34:K39) -> 0 | L40: =SUM(L34:M39) -> 0 | N40: =SUM(N34:O39) -> 0
A43: Total Salary and Fringe | D43: =SUM(D40,D28) -> 0 | F43: =SUM(F40,F28) -> 0 | H43: =SUM(H40,H28) -> 0 | J43: =SUM(J40,J28) -> 0 | L43: =SUM(L40,L28) -> 0 | N43: =SUM(N40,N28) -> 0
A45: Equipment (Excluded from MTDC)
A46: Total Equipment | D46: =SUMIF('Equip Trav PartCost'!A16:A21, 1, 'Equip Trav PartCost'!I16:J21) -> 0 | F46: =SUMIF('Equip Trav PartCost'!A16:A21, 2, 'Equip Trav PartCost'!I16:J21) -> 0 | H46: =SUMIF('Equip Trav PartCost'!A16:A21, 3, 'Equip Trav PartCost'!I16:J21) -> 0 | J46: =SUMIF('Equip Trav PartCost'!A16:A21, 4, 'Equip Trav PartCost'!I16:J21) -> 0 | L46: =SUMIF('Equip Trav PartCost'!A16:A21, 5, 'Equip Trav PartCost'!I16:J21) -> 0 | N46: =SUM(D46:M46) -> 0
A47: Travel
A48: Domestic | D48: =SUMIFS('Equip Trav PartCost'!T29:T34, 'Equip Trav PartCost'!A29:A34, 1, 'Equip Trav PartCost'!C29:C34, "Domestic") -> 0 | F48: =SUMIFS('Equip Trav PartCost'!T29:T34, 'Equip Trav PartCost'!A29:A34, 2, 'Equip Trav PartCost'!C29:C34, "Domestic") -> 0 | H48: =SUMIFS('Equip Trav PartCost'!T29:T34, 'Equip Trav PartCost'!A29:A34, 3, 'Equip Trav PartCost'!C29:C34, "Domestic") -> 0 | J48: =SUMIFS('Equip Trav PartCost'!T29:T34, 'Equip Trav PartCost'!A29:A34, 4, 'Equip Trav PartCost'!C29:C34, "Domestic") -> 0 | L48: =SUMIFS('Equip Trav PartCost'!T29:T34, 'Equip Trav PartCost'!A29:A34, 5, 'Equip Trav PartCost'!C29:C34, "Domestic") -> 0 | N48: =SUM(D48:M48) -> 0
A49: Foreign | D49: =SUMIFS('Equip Trav PartCost'!T29:T34, 'Equip Trav PartCost'!A29:A34, 1, 'Equip Trav PartCost'!C29:C34, "Foreign") -> 0 | F49: =SUMIFS('Equip Trav PartCost'!T29:T34, 'Equip Trav PartCost'!A29:A34, 2, 'Equip Trav PartCost'!C29:C34, "Foreign") -> 0 | H49: =SUMIFS('Equip Trav PartCost'!T29:T34, 'Equip Trav PartCost'!A29:A34, 3, 'Equip Trav PartCost'!C29:C34, "Foreign") -> 0 | J49: =SUMIFS('Equip Trav PartCost'!T29:T34, 'Equip Trav PartCost'!A29:A34, 4, 'Equip Trav PartCost'!C29:C34, "Foreign") -> 0 | L49: =SUMIFS('Equip Trav PartCost'!T29:T34, 'Equip Trav PartCost'!A29:A34, 5, 'Equip Trav PartCost'!C29:C34, "Foreign") -> 0 | N49: =SUM(D49:M49) -> 0
A50: In-State | D50: =SUMIFS('Equip Trav PartCost'!T29:T34, 'Equip Trav PartCost'!A29:A34, 1, 'Equip Trav PartCost'!C29:C34, "State") -> 0 | F50: =SUMIFS('Equip Trav PartCost'!T29:T34, 'Equip Trav PartCost'!A29:A34, 2, 'Equip Trav PartCost'!C29:C34, "State") -> 0 | H50: =SUMIFS('Equip Trav PartCost'!T29:T34, 'Equip Trav PartCost'!A29:A34, 3, 'Equip Trav PartCost'!C29:C34, "State") -> 0 | J50: =SUMIFS('Equip Trav PartCost'!T29:T34, 'Equip Trav PartCost'!A29:A34, 4, 'Equip Trav PartCost'!C29:C34, "State") -> 0 | L50: =SUMIFS('Equip Trav PartCost'!T29:T34, 'Equip Trav PartCost'!A29:A34, 5, 'Equip Trav PartCost'!C29:C34, "State") -> 0 | N50: =SUM(D50:M50) -> 0
A52: Total Travel | D52: =SUM(D48:E51) -> 0 | F52: =SUM(F48:G51) -> 0 | H52: =SUM(H48:I51) -> 0 | J52: =SUM(J48:K51) -> 0 | L52: =SUM(L48:M51) -> 0 | N52: =SUM(N48:O51) -> 0
A53: Participant Support Costs (Excluded from MTDC)
A54: Stipends | D54: =SUMPRODUCT(--('Equip Trav PartCost'!A41:A46=1),'Equip Trav PartCost'!D41:'Equip Trav PartCost'!D46,'Equip Trav PartCost'!B41:'Equip Trav PartCost'!B46) -> 0 | F54: =SUMPRODUCT(--('Equip Trav PartCost'!A41:A46=2),'Equip Trav PartCost'!D41:'Equip Trav PartCost'!D46,'Equip Trav PartCost'!B41:'Equip Trav PartCost'!B46) -> 0 | H54: =SUMPRODUCT(--('Equip Trav PartCost'!A41:A46=3),'Equip Trav PartCost'!D41:'Equip Trav PartCost'!D46,'Equip Trav PartCost'!B41:'Equip Trav PartCost'!B46) -> 0 | J54: =SUMPRODUCT(--('Equip Trav PartCost'!A41:A46=4),'Equip Trav PartCost'!D41:'Equip Trav PartCost'!D46,'Equip Trav PartCost'!B41:'Equip Trav PartCost'!B46) -> 0 | L54: =SUMPRODUCT(--('Equip Trav PartCost'!A41:A46=5),'Equip Trav PartCost'!D41:'Equip Trav PartCost'!D46,'Equip Trav PartCost'!B41:'Equip Trav PartCost'!B46) -> 0 | N54: =SUM(D54:M54) -> 0
A55: Travel | D55: =SUMPRODUCT(--('Equip Trav PartCost'!A41:A46=1),'Equip Trav PartCost'!G41:'Equip Trav PartCost'!G46,'Equip Trav PartCost'!B41:'Equip Trav PartCost'!B46) -> 0 | F55: =SUMPRODUCT(--('Equip Trav PartCost'!A41:A46=2),'Equip Trav PartCost'!G41:'Equip Trav PartCost'!G46,'Equip Trav PartCost'!B41:'Equip Trav PartCost'!B46) -> 0 | H55: =SUMPRODUCT(--('Equip Trav PartCost'!A41:A46=3),'Equip Trav PartCost'!G41:'Equip Trav PartCost'!G46,'Equip Trav PartCost'!B41:'Equip Trav PartCost'!B46) -> 0 | J55: =SUMPRODUCT(--('Equip Trav PartCost'!A41:A46=4),'Equip Trav PartCost'!G41:'Equip Trav PartCost'!G46,'Equip Trav PartCost'!B41:'Equip Trav PartCost'!B46) -> 0 | L55: =SUMPRODUCT(--('Equip Trav PartCost'!A41:A46=5),'Equip Trav PartCost'!G41:'Equip Trav PartCost'!G46,'Equip Trav PartCost'!B41:'Equip Trav PartCost'!B46) -> 0 | N55: =SUM(D55:M55) -> 0
A56: Subsistance | D56: =SUMPRODUCT(--('Equip Trav PartCost'!A41:A46=1),'Equip Trav PartCost'!I41:'Equip Trav PartCost'!I46,'Equip Trav PartCost'!B41:'Equip Trav PartCost'!B46) -> 0 | F56: =SUMPRODUCT(--('Equip Trav PartCost'!A41:A46=2),'Equip Trav PartCost'!I41:'Equip Trav PartCost'!I46,'Equip Trav PartCost'!B41:'Equip Trav PartCost'!B46) -> 0 | H56: =SUMPRODUCT(--('Equip Trav PartCost'!A41:A46=3),'Equip Trav PartCost'!I41:'Equip Trav PartCost'!I46,'Equip Trav PartCost'!B41:'Equip Trav PartCost'!B46) -> 0 | J56: =SUMPRODUCT(--('Equip Trav PartCost'!A41:A46=4),'Equip Trav PartCost'!I41:'Equip Trav PartCost'!I46,'Equip Trav PartCost'!B41:'Equip Trav PartCost'!B46) -> 0 | L56: =SUMPRODUCT(--('Equip Trav PartCost'!A41:A46=5),'Equip Trav PartCost'!I41:'Equip Trav PartCost'!I46,'Equip Trav PartCost'!B41:'Equip Trav PartCost'!B46) -> 0 | N56: =SUM(D56:M56) -> 0
A57: Other | D57: =SUMPRODUCT(--('Equip Trav PartCost'!A41:A46=1),'Equip Trav PartCost'!K41:'Equip Trav PartCost'!K46,'Equip Trav PartCost'!B41:'Equip Trav PartCost'!B46) -> 0 | F57: =SUMPRODUCT(--('Equip Trav PartCost'!A41:A46=2),'Equip Trav PartCost'!K41:'Equip Trav PartCost'!K46,'Equip Trav PartCost'!B41:'Equip Trav PartCost'!B46) -> 0 | H57: =SUMPRODUCT(--('Equip Trav PartCost'!A41:A46=3),'Equip Trav PartCost'!K41:'Equip Trav PartCost'!K46,'Equip Trav PartCost'!B41:'Equip Trav PartCost'!B46) -> 0 | J57: =SUMPRODUCT(--('Equip Trav PartCost'!A41:A46=4),'Equip Trav PartCost'!K41:'Equip Trav PartCost'!K46,'Equip Trav PartCost'!B41:'Equip Trav PartCost'!B46) -> 0 | L57: =SUMPRODUCT(--('Equip Trav PartCost'!A41:A46=5),'Equip Trav PartCost'!K41:'Equip Trav PartCost'!K46,'Equip Trav PartCost'!B41:'Equip Trav PartCost'!B46) -> 0 | N57: =SUM(D57:M57) -> 0
A58: Total Participant Support Costs | D58: =SUM(D54:E57) -> 0 | F58: =SUM(F54:G57) -> 0 | H58: =SUM(H54:I57) -> 0 | J58: =SUM(J54:K57) -> 0 | L58: =SUM(L54:M57) -> 0 | N58: =SUM(D58:M58) -> 0
A59: Other Direct Costs -Please click on hyperlink to itemize
A60: Materials and Supplies | D60: =SUMIF('Other Direct Costs'!A18:A23, 1, 'Other Direct Costs'!M18:N23) -> 0 | F60: =SUMIF('Other Direct Costs'!A18:A23, 2, 'Other Direct Costs'!M18:N23) -> 0 | H60: =SUMIF('Other Direct Costs'!A18:A23, 3, 'Other Direct Costs'!M18:N23) -> 0 | J60: =SUMIF('Other Direct Costs'!A18:A23, 4, 'Other Direct Costs'!M18:N23) -> 0 | L60: =SUMIF('Other Direct Costs'!A18:A23, 5, 'Other Direct Costs'!M18:N23) -> 0 | N60: =SUM(D60:M60) -> 0
A61: Publication Costs | D61: =SUMIF('Other Direct Costs'!A29:A34, 1, 'Other Direct Costs'!M29:N34) -> 0 | F61: =SUMIF('Other Direct Costs'!A29:A34, 2, 'Other Direct Costs'!M29:N34) -> 0 | H61: =SUMIF('Other Direct Costs'!A29:A34, 3, 'Other Direct Costs'!M29:N34) -> 0 | J61: =SUMIF('Other Direct Costs'!A29:A34, 4, 'Other Direct Costs'!M29:N34) -> 0 | L61: =SUMIF('Other Direct Costs'!A29:A34, 5, 'Other Direct Costs'!M29:N34) -> 0 | N61: 0
A62: Professional Service Agreement/Consultants/Honorarium | D62: =SUMIF('Other Direct Costs'!A40:A45, 1, 'Other Direct Costs'!M40:N45) -> 0 | F62: =SUMIF('Other Direct Costs'!A40:A45, 2, 'Other Direct Costs'!M40:N45) -> 0 | H62: =SUMIF('Other Direct Costs'!A40:A45, 3, 'Other Direct Costs'!M40:N45) -> 0 | J62: =SUMIF('Other Direct Costs'!A40:A45, 4, 'Other Direct Costs'!M40:N45) -> 0 | L62: =SUMIF('Other Direct Costs'!A40:A45, 5, 'Other Direct Costs'!M40:N45) -> 0 | N62: 0
A63: Vendor Contracts | D63: =SUMIF('Other Direct Costs'!A51:A56, 1, 'Other Direct Costs'!M51:N56) -> 0 | F63: =SUMIF('Other Direct Costs'!A51:A56, 2, 'Other Direct Costs'!M51:N56) -> 0 | H63: =SUMIF('Other Direct Costs'!A51:A56, 3, 'Other Direct Costs'!M51:N56) -> 0 | J63: =SUMIF('Other Direct Costs'!A51:A56, 4, 'Other Direct Costs'!M51:N56) -> 0 | L63: =SUMIF('Other Direct Costs'!A51:A56, 5, 'Other Direct Costs'!M51:N56) -> 0 | N63: 0
A64: Subawards subject to F&A rate | D64: ='Sub Awards'!D112:E112 -> 0 | F64: ='Sub Awards'!F112:G112 -> 0 | H64: ='Sub Awards'!H112:I112 -> 0 | J64: ='Sub Awards'!J112:K112 -> 0 | L64: ='Sub Awards'!L112:M112 -> 0 | N64: 0
A65: Subawards not subject to F&A rate (Excluded from MTDC) | D65: ='Sub Awards'!D113:E113 -> 0 | F65: ='Sub Awards'!F113:G113 -> 0 | H65: ='Sub Awards'!H113:I113 -> 0 | J65: ='Sub Awards'!J113:K113 -> 0 | L65: ='Sub Awards'!L113:M113 -> 0 | N65: 0
A66: Service Centers | D66: =SUMIF('Other Direct Costs'!A62:A67, 1, 'Other Direct Costs'!M62:N67) -> 0 | F66: =SUMIF('Other Direct Costs'!A62:A67, 2, 'Other Direct Costs'!M62:N67) -> 0 | H66: =SUMIF('Other Direct Costs'!A62:A67, 3, 'Other Direct Costs'!M62:N67) -> 0 | J66: =SUMIF('Other Direct Costs'!A62:A67, 4, 'Other Direct Costs'!M62:N67) -> 0 | L66: =SUMIF('Other Direct Costs'!A62:A67, 5, 'Other Direct Costs'!M62:N67) -> 0 | N66: 0
A67: Graduate Tuition and Fees (Excluded from MTDC) | D67: ='Personnel Expense Calculator'!K81 -> 0 | F67: ='Personnel Expense Calculator'!M81 -> 0 | H67: ='Personnel Expense Calculator'!O81 -> 0 | J67: ='Personnel Expense Calculator'!Q81 -> 0 | L67: ='Personnel Expense Calculator'!S81 -> 0 | N67: =SUM(D67:M67) -> 0
A68: Repair and Maintenance | D68: =SUMIF('Other Direct Costs'!A73:A78, 1, 'Other Direct Costs'!M73:N78) -> 0 | F68: =SUMIF('Other Direct Costs'!A73:A78, 2, 'Other Direct Costs'!M73:N78) -> 0 | H68: =SUMIF('Other Direct Costs'!A73:A78, 3, 'Other Direct Costs'!M73:N78) -> 0 | J68: =SUMIF('Other Direct Costs'!A73:A78, 4, 'Other Direct Costs'!M73:N78) -> 0 | L68: =SUMIF('Other Direct Costs'!A73:A78, 5, 'Other Direct Costs'!M73:N78) -> 0 | N68: 0
A69: Human Subject Payments | D69: =SUMIF('Other Direct Costs'!A84:A89, 1, 'Other Direct Costs'!M84:N89) -> 0 | F69: =SUMIF('Other Direct Costs'!A84:A89, 2, 'Other Direct Costs'!M84:N89) -> 0 | H69: =SUMIF('Other Direct Costs'!A84:A89, 3, 'Other Direct Costs'!M84:N89) -> 0 | J69: =SUMIF('Other Direct Costs'!A84:A89, 4, 'Other Direct Costs'!M84:N89) -> 0 | L69: =SUMIF('Other Direct Costs'!A84:A89, 5, 'Other Direct Costs'!M84:N89) -> 0 | N69: 0
A70: Animal Care costs | D70: =SUMIF('Other Direct Costs'!A96:A101, 1, 'Other Direct Costs'!N96:O101) -> 0 | F70: =SUMIF('Other Direct Costs'!A96:A101, 2, 'Other Direct Costs'!N96:O101) -> 0 | H70: =SUMIF('Other Direct Costs'!A96:A101, 3, 'Other Direct Costs'!N96:O101) -> 0 | J70: =SUMIF('Other Direct Costs'!A96:A101, 4, 'Other Direct Costs'!N96:O101) -> 0 | L70: =SUMIF('Other Direct Costs'!A96:A101, 5, 'Other Direct Costs'!N96:O101) -> 0 | N70: 0
A71: Rental of research space and equipment (Excluded from MTDC) | D71: =SUMIF('Other Direct Costs'!A107:A112, 1, 'Other Direct Costs'!M107:N112) -> 0 | F71: =SUMIF('Other Direct Costs'!A107:A112, 2, 'Other Direct Costs'!M107:N112) -> 0 | H71: =SUMIF('Other Direct Costs'!A107:A112, 3, 'Other Direct Costs'!M107:N112) -> 0 | J71: =SUMIF('Other Direct Costs'!A107:A112, 4, 'Other Direct Costs'!M107:N112) -> 0 | L71: =SUMIF('Other Direct Costs'!A107:A112, 5, 'Other Direct Costs'!M107:N112) -> 0 | N71: 0
A72: Other costs ,subject to F&A rate | D72: =SUMIF('Other Direct Costs'!A118:A123, 1, 'Other Direct Costs'!M118:N123) -> 0 | F72: =SUMIF('Other Direct Costs'!A118:A123, 2, 'Other Direct Costs'!M118:N123) -> 0 | H72: =SUMIF('Other Direct Costs'!A118:A123, 3, 'Other Direct Costs'!M118:N123) -> 0 | J72: =SUMIF('Other Direct Costs'!A118:A123, 4, 'Other Direct Costs'!M118:N123) -> 0 | L72: =SUMIF('Other Direct Costs'!A118:A123, 5, 'Other Direct Costs'!M118:N123) -> 0 | N72: 0
A73: Other Costs, not Subject to F&A rate (Excluded from MTDC) | D73: =SUMIF('Other Direct Costs'!A129:A134, 1, 'Other Direct Costs'!M129:N134) -> 0 | F73: =SUMIF('Other Direct Costs'!A129:A134, 2, 'Other Direct Costs'!M129:N134) -> 0 | H73: =SUMIF('Other Direct Costs'!A129:A134, 3, 'Other Direct Costs'!M129:N134) -> 0 | J73: =SUMIF('Other Direct Costs'!A129:A134, 4, 'Other Direct Costs'!M129:N134) -> 0 | L73: =SUMIF('Other Direct Costs'!A129:A134, 5, 'Other Direct Costs'!M129:N134) -> 0 | N73: 0
A74: Total Other Direct Costs | D74: =SUM(D60:E73) -> 0 | F74: =SUM(F60:G73) -> 0 | H74: =SUM(H60:I73) -> 0 | J74: =SUM(J60:K73) -> 0 | L74: =SUM(L60:M73) -> 0 | N74: =SUM(D74:M74) -> 0
D76: Year 1 | F76: Year 2 | H76: Year 3 | J76: Year 4 | L76: Year 5 | N76: Total | Q76: Year | R76: F&A Rate
A77: Total Direct Costs | D77: =SUM(D74,D58,D52,D46,D43) -> 0 | F77: =SUM(F74,F58,F52,F46,F43) -> 0 | H77: =SUM(H74,H58,H52,H46,H43) -> 0 | J77: =SUM(J74,J58,J52,J46,J43) -> 0 | L77: =SUM(L74,L58,L52,L46,L43) -> 0 | N77: =SUM(D77:M77) -> 0 | Q77: ='Cover Page'!$J$37 -> 1 | R77: ='Cover Page'!$K$37 -> 0
A78: Modified Total Direct Costs | D78: =D77-D46-D58-D65-D67-D71-D73 -> 0 | F78: =F77-F46-F58-F65-F67-F71-F73 -> 0 | H78: =H77-H46-H58-H65-H67-H71-H73 -> 0 | J78: =J77-J46-J58-J65-J67-J71-J73 -> 0 | L78: =L77-L46-L58-L65-L67-L71-L73 -> 0 | N78: =SUM(D78:M78) -> 0 | Q78: ='Cover Page'!$J$38 -> 2 | R78: ='Cover Page'!$K$38 -> 0
A79: TDC minus Subs | D79: =D77-D64-D65 -> 0 | F79: =F77-F64-F65 -> 0 | H79: =H77-H64-H65 -> 0 | J79: =J77-J64-J65 -> 0 | L79: =L77-L64-L65 -> 0 | N79: =SUM(D79:M79) -> 0 | Q79: ='Cover Page'!$J$39 -> 3 | R79: ='Cover Page'!$K$39 -> 0
A80: F&A | D80: =IF('Cover Page'!$J$21='Detailed Budget'!$A$77,'Detailed Budget'!D77*R77,IF('Cover Page'!$J$21='Detailed Budget'!$A$78,'Detailed Budget'!D78*R77,IF('Cover Page'!$J$21='Detailed Budget'!$A$79,'Detailed Budget'!D79*R77))) -> 0 | F80: =IF('Cover Page'!$J$21='Detailed Budget'!$A$77,'Detailed Budget'!F77*R78,IF('Cover Page'!$J$21='Detailed Budget'!$A$78,'Detailed Budget'!F78*R78,IF('Cover Page'!$J$21='Detailed Budget'!$A$79,'Detailed Budget'!F79*R78))) -> 0 | H80: =IF('Cover Page'!$J$21='Detailed Budget'!$A$77,'Detailed Budget'!H77*R79,IF('Cover Page'!$J$21='Detailed Budget'!$A$78,'Detailed Budget'!H78*R79,IF('Cover Page'!$J$21='Detailed Budget'!$A$79,'Detailed Budget'!H79*R79))) -> 0 | J80: =IF('Cover Page'!$J$21='Detailed Budget'!$A$77,'Detailed Budget'!J77*R80,IF('Cover Page'!$J$21='Detailed Budget'!$A$78,'Detailed Budget'!J78*R80,IF('Cover Page'!$J$21='Detailed Budget'!$A$79,'Detailed Budget'!J79*R80))) -> 0 | L80: =IF('Cover Page'!$J$21='Detailed Budget'!$A$77,'Detailed Budget'!L77*R81,IF('Cover Page'!$J$21='Detailed Budget'!$A$78,'Detailed Budget'!L78*R81,IF('Cover Page'!$J$21='Detailed Budget'!$A$79,'Detailed Budget'!L79*R81))) -> 0 | N80: =SUM(D80:M80) -> 0 | Q80: ='Cover Page'!$J$40 -> 4 | R80: ='Cover Page'!$K$40 -> 0
A81: Total Costs | D81: =SUM(D77,D80) -> 0 | F81: =SUM(F77,F80) -> 0 | H81: =SUM(H77,H80) -> 0 | J81: =SUM(J77,J80) -> 0 | L81: =SUM(L77,L80) -> 0 | N81: =SUM(N77,N80) -> 0 | Q81: ='Cover Page'!$J$41 -> 5 | R81: ='Cover Page'!$K$41 -> 0
B82: ='Cover Page'!J21 -> 0
C84: Target Total | N84: =SUM(D84:M84) -> 0
C85: Difference | D85: =D84-D81 -> 0 | F85: =F84-F81 -> 0 | H85: =H84-H81 -> 0 | J85: =J84-J81 -> 0 | L85: =L84-L81 -> 0 | N85: =SUM(D85:M85) -> 0
B87: COMMENTS:

Sheet Sub Awards
A3: Texas Tech University, Office of Research Services | L3: F&A Threshold | N3: 25000
A4: Project Budget Template
A10: Project Summary | D10: Year 1 | F10: Year 2 | H10: Year 3 | J10: Year 4 | L10: Year 5 | N10: Total | Q10: INSTRUCTIONS FOR ENTERING SUBAWARDS
A11: Total Direct Costs | D11: ='Detailed Budget'!D77 -> 0 | F11: ='Detailed Budget'!F77 -> 0 | H11: ='Detailed Budget'!H77 -> 0 | J11: ='Detailed Budget'!J77 -> 0 | L11: ='Detailed Budget'!L77 -> 0 | N11: ='Detailed Budget'!N77 -> 0
A12: Modified Total Direct Costs | D12: ='Detailed Budget'!D78 -> 0 | F12: ='Detailed Budget'!F78 -> 0 | H12: ='Detailed Budget'!H78 -> 0 | J12: ='Detailed Budget'!J78 -> 0 | L12: ='Detailed Budget'!L78 -> 0 | N12: ='Detailed Budget'!N78 -> 0 | Q12: Name | R12: Type in Name of Subaward: ie. University of Texas - Austin, ABC Company, etc.
A13: TDC minus Subs | D13: ='Detailed Budget'!D79 -> 0 | F13: ='Detailed Budget'!F79 -> 0 | H13: ='Detailed Budget'!H79 -> 0 | J13: ='Detailed Budget'!J79 -> 0 | L13: ='Detailed Budget'!L79 -> 0 | N13: ='Detailed Budget'!N79 -> 0 | Q13: Year 1-Year 5 | R13: Type in Direct Costs and Indirect Costs per year.
A14: F&A | D14: ='Detailed Budget'!D80 -> 0 | F14: ='Detailed Budget'!F80 -> 0 | H14: ='Detailed Budget'!H80 -> 0 | J14: ='Detailed Budget'!J80 -> 0 | L14: ='Detailed Budget'!L80 -> 0 | N14: ='Detailed Budget'!N80 -> 0 | Q14: Total | R14: This will automatically calculate. Do not edit or alter these values.
A15: Total Costs | D15: ='Detailed Budget'!D81 -> 0 | F15: ='Detailed Budget'!F81 -> 0 | H15: ='Detailed Budget'!H81 -> 0 | J15: ='Detailed Budget'!J81 -> 0 | L15: ='Detailed Budget'!L81 -> 0 | N15: ='Detailed Budget'!N81 -> 0 | Q15: <$25k | R15: This will automatically calculate. Do not edit or alter these values.
Q16: >$25k | R16: This will automatically calculate. Do not edit or alter these values.
A17: Name: | B17: abc | D17: Year 1 | F17: Year 2 | H17: Year 3 | J17: Year 4 | L17: Year 5 | N17: TOTAL | Q17: Additional Subs | R17: If you require more than 3 sub-awards please "unhide" rows 34-97 as needed. If you need more than 10 sub-awards, please contact your ORS Administrator for assistance.
A18: Sub 1
A19: Direct Costs | N19: =SUM(D19:M19) -> 0 | Q19: Total Table | R19: This will automatically calculate. Do not edit or alter these values.
A20: Indirect Costs | N20: =SUM(D20:M20) -> 0
A21: Total | D21: =SUM(D18:E20) -> 0 | F21: =SUM(F18:G20) -> 0 | H21: =SUM(H18:I20) -> 0 | J21: =SUM(J18:K20) -> 0 | L21: =SUM(L18:M20) -> 0 | N21: =SUM(D21:M21) -> 0
A22: <$25K | D22: =IF(N3=0,0,IF(D21<=25000,D21,25000)) -> 0 | F22: =IF(N3=0,0,IF(SUM(D21:G21)<=25000,F21,25000-D22)) -> 0 | H22: =IF(N3=0,0,IF(SUM(D21:I21)<=25000,H21,25000-F22-D22)) -> 0 | J22: =IF(N3=0,0,IF(SUM(D21:K21)<=25000,J21,25000-H22-F22-D22)) -> 0 | L22: =IF(N3=0,0,IF(SUM(D21:M21)<=25000,L21,25000-F22-H22-J22-D22)) -> 0 | N22: =SUM(D22:M22) -> 0
A23: >$25K | D23: =IF(N3=0,D21,IF(D21>25000,D21-25000,0)) -> 0 | F23: =IF(N3=0,F21,IF(D21+F21>25000,F21-F22,0)) -> 0 | H23: =IF(N3=0,H21,IF(SUM(D21:I21)>25000,H21-H22,0)) -> 0 | J23: =IF(N3=0,J21,IF(SUM(D21:K21)>25000,J21-J22,0)) -> 0 | L23: =IF(N3=0,L21,IF(SUM(D21:M21)>25000,L21-L22,0)) -> 0 | N23: =SUM(D23:M23) -> 0
A26: Name: | D26: Year 1 | F26: Year 2 | H26: Year 3 | J26: Year 4 | L26: Year 5 | N26: TOTAL
A27: Sub 2
A28: Direct Costs | N28: =SUM(D28:M28) -> 0
A29: Indirect Costs | N29: =SUM(D29:M29) -> 0
A30: Total | D30: =SUM(D28:E29) -> 0 | F30: =SUM(F28:G29) -> 0 | H30: =SUM(H28:I29) -> 0 | J30: 0 | L30: 0 | N30: =SUM(D30:M30) -> 0
A31: <$25K | D31: =IF(N3=0,0,IF(D30<=25000,D30,25000)) -> 0 | F31: =IF(N3=0,0,IF(SUM(D30:G30)<=25000,F30,25000-D31)) -> 0 | H31: =IF(N3=0,0,IF(SUM(D30:I30)<=25000,H30,25000-F31-D31)) -> 0 | J31: =IF(N3=0,0,IF(SUM(D30:K30)<=25000,J30,25000-D31-F31-H31)) -> 0 | L31: =IF(N3=0,0,IF(SUM(F30:M30)<=25000,L30,25000-F31-H31-J31-D31)) -> 0 | N31: =SUM(D31:M31) -> 0
A32: >$25K | D32: =IF(N3=0,D30,IF(D30>25000,D30-25000,0)) -> 0 | F32: =IF(N3=0,F30,IF(D30+F30>25000,F30-F31,0)) -> 0 | H32: =IF(N3=0,H30,IF(SUM(D30:I30)>25000,H30-H31,0)) -> 0 | J32: =IF(N3=0,J30,IF(SUM(D30:K30)>25000,J30-J31,0)) -> 0 | L32: =IF(N3=0,L30,IF(SUM(D30:M30)>25000,L30-L31,0)) -> 0 | N32: =SUM(D32:M32) -> 0
A35: Name: | D35: Year 1 | F35: Year 2 | H35: Year 3 | J35: Year 4 | L35: Year 5 | N35: TOTAL
A36: Sub 3
A37: Direct Costs | N37: =SUM(D37:M37) -> 0
A38: Indirect Costs | N38: =SUM(D38:M38) -> 0
A39: Total | D39: =SUM(D37:E38) -> 0 | F39: =SUM(F37:G38) -> 0 | H39: =SUM(H37:I38) -> 0 | J39: 0 | L39: 0 | N39: =SUM(D39:M39) -> 0
A40: <$25K | D40: =IF(N3=0,0,IF(D39<=25000,D39,25000)) -> 0 | F40: =IF(N3=0,0,IF(SUM(D39:G39)<=25000,F39,25000-D40)) -> 0 | H40: =IF(N3=0,0,IF(SUM(D39:I39)<=25000,H39,25000-F40-D40)) -> 0 | J40: =IF(N3=0,0,IF(SUM(D39:K39)<=25000,J39,25000-D40-F40-H40)) -> 0 | L40: =IF(N3=0,0,IF(SUM(F39:M39)<=25000,L39,25000-F40-H40-J40-D40)) -> 0 | N40: =SUM(D40:M40) -> 0
A41: >$25K | D41: =IF(N3=0,D39,IF(D39>25000,D39-25000,0)) -> 0 | F41: =IF(N3=0,F39,IF(D39+F39>25000,F39-F40,0)) -> 0 | H41: =IF(N3=0,H39,IF(SUM(D39:I39)>25000,H39-H40,0)) -> 0 | J41: =IF(N3=0,J39,IF(SUM(D39:K39)>25000,J39-J40,0)) -> 0 | L41: =IF(N3=0,L39,IF(SUM(D39:M39)>25000,L39-L40,0)) -> 0 | N41: =SUM(D41:M41) -> 0
A44: Name: | D44: Year 1 | F44: Year 2 | H44: Year 3 | J44: Year 4 | L44: Year 5 | N44: TOTAL
A45: Sub 4
A46: Direct Costs | N46: =SUM(D46:M46) -> 0
A47: Indirect Costs | N47: =SUM(D47:M47) -> 0
A48: Total | D48: =SUM(D46:E47) -> 0 | F48: =SUM(F46:G47) -> 0 | H48: =SUM(H46:I47) -> 0 | J48: =SUM(J46:K47) -> 0 | L48: =SUM(L46:M47) -> 0 | N48: =SUM(D48:M48) -> 0
A49: <$25K | D49: =IF(N3=0,0,IF(D48<=25000,D48,25000)) -> 0 | F49: =IF(N3=0,0,IF(SUM(D48:G48)<=25000,F48,25000-D49)) -> 0 | H49: =IF(N3=0,0,IF(SUM(D48:I48)<=25000,H48,25000-F49-D49)) -> 0 | J49: =IF(N3=0,0,IF(SUM(D48:K48)<=25000,J48,25000-D49-F49-H49)) -> 0 | L49: =IF(N3=0,0,IF(SUM(F48:M48)<=25000,L48,25000-F49-H49-J49-D49)) -> 0 | N49: =SUM(D49:M49) -> 0
A50: >$25K | D50: =IF(N3=0,D48,IF(D48>25000,D48-25000,0)) -> 0 | F50: =IF(N3=0,F48,IF(D48+F48>25000,F48-F49,0)) -> 0 | H50: =IF(N3=0,H48,IF(SUM(D48:I48)>25000,H48-H49,0)) -> 0 | J50: =IF(N3=0,J48,IF(SUM(D48:K48)>25000,J48-J49,0)) -> 0 | L50: =IF(N3=0,L48,IF(SUM(D48:M48)>25000,L48-L49,0)) -> 0 | N50: =SUM(D50:M50) -> 0
A53: Name: | D53: Year 1 | F53: Year 2 | H53: Year 3 | J53: Year 4 | L53: Year 5 | N53: TOTAL
A54: Sub 5
A55: Direct Costs | N55: =SUM(D55:M55) -> 0
A56: Indirect Costs | N56: =SUM(D56:M56) -> 0
A57: Total | D57: =SUM(D55:E56) -> 0 | F57: =SUM(F55:G56) -> 0 | H57: =SUM(H55:I56) -> 0 | J57: =SUM(J55:K56) -> 0 | L57: =SUM(L55:M56) -> 0 | N57: =SUM(D57:M57) -> 0
A58: <$25K | D58: =IF(N3=0,0,IF(D57<=25000,D57,25000)) -> 0 | F58: =IF(N3=0,0,IF(SUM(D57:G57)<=25000,F57,25000-D58)) -> 0 | H58: =IF(N3=0,0,IF(SUM(D57:I57)<=25000,H57,25000-F58-D58)) -> 0 | J58: =IF(N3=0,0,IF(SUM(D57:K57)<=25000,J57,25000-D58-F58-H58)) -> 0 | L58: =IF(N3=0,0,IF(SUM(F57:M57)<=25000,L57,25000-F58-H58-J58-D58)) -> 0 | N58: =SUM(D58:M58) -> 0
A59: >$25K | D59: =IF(N3=0,D57,IF(D57>25000,D57-25000,0)) -> 0 | F59: =IF(N3=0,F57,IF(D57+F57>25000,F57-F58,0)) -> 0 | H59: =IF(N3=0,H57,IF(SUM(D57:I57)>25000,H57-H58,0)) -> 0 | J59: =IF(N3=0,J57,IF(SUM(D57:K57)>25000,J57-J58,0)) -> 0 | L59: =IF(N3=0,L57,IF(SUM(D57:M57)>25000,L57-L58,0)) -> 0 | N59: =SUM(D59:M59) -> 0
A62: Name: | D62: Year 1 | F62: Year 2 | H62: Year 3 | J62: Year 4 | L62: Year 5 | N62: TOTAL
A63: Sub 6
A64: Direct Costs | N64: =SUM(D64:M64) -> 0
A65: Indirect Costs | N65: =SUM(D65:M65) -> 0
A66: Total | D66: =SUM(D64:E65) -> 0 | F66: =SUM(F64:G65) -> 0 | H66: =SUM(H64:I65) -> 0 | J66: =SUM(J64:K65) -> 0 | L66: =SUM(L64:M65) -> 0 | N66: =SUM(D66:M66) -> 0
A67: <$25K | D67: =IF(N3=0,0,IF(D66<=25000,D66,25000)) -> 0 | F67: =IF(N3=0,0,IF(SUM(D66:G66)<=25000,F66,25000-D67)) -> 0 | H67: =IF(N3=0,0,IF(SUM(D66:I66)<=25000,H66,25000-F67-D67)) -> 0 | J67: =IF(N3=0,0,IF(SUM(D66:K66)<=25000,J66,25000-D67-F67-H67)) -> 0 | L67: =IF(N3=0,0,IF(SUM(F66:M66)<=25000,L66,25000-F67-H67-J67-D67)) -> 0 | N67: =SUM(D67:M67) -> 0
A68: >$25K | D68: =IF(N3=0,D66,IF(D66>25000,D66-25000,0)) -> 0 | F68: =IF(N3=0,F66,IF(D66+F66>25000,F66-F67,0)) -> 0 | H68: =IF(N3=0,H66,IF(SUM(D66:I66)>25000,H66-H67,0)) -> 0 | J68: =IF(N3=0,J66,IF(SUM(D66:K66)>25000,J66-J67,0)) -> 0 | L68: =IF(N3=0,L66,IF(SUM(D66:M66)>25000,L66-L67,0)) -> 0 | N68: =SUM(D68:M68) -> 0
A71: Name: | D71: Year 1 | F71: Year 2 | H71: Year 3 | J71: Year 4 | L71: Year 5 | N71: TOTAL
A72: Sub 7
A73: Direct Costs | N73: =SUM(D73:M73) -> 0
A74: Indirect Costs | N74: =SUM(D74:M74) -> 0
A75: Total | D75: =SUM(D73:E74) -> 0 | F75: =SUM(F73:G74) -> 0 | H75: =SUM(H73:I74) -> 0 | J75: =SUM(J73:K74) -> 0 | L75: =SUM(L73:M74) -> 0 | N75: =SUM(D75:M75) -> 0
A76: <$25K | D76: =IF(N3=0,0,IF(D75<=25000,D75,25000)) -> 0 | F76: =IF(N3=0,0,IF(SUM(D75:G75)<=25000,F75,25000-D76)) -> 0 | H76: =IF(N3=0,0,IF(SUM(D75:I75)<=25000,H75,25000-F76-D76)) -> 0 | J76: =IF(N3=0,0,IF(SUM(D75:K75)<=25000,J75,25000-D76-F76-H76)) -> 0 | L76: =IF(N3=0,0,IF(SUM(F75:M75)<=25000,L75,25000-F76-H76-J76-D76)) -> 0 | N76: =SUM(D76:M76) -> 0
A77: >$25K | D77: =IF(N3=0,D75,IF(D75>25000,D75-25000,0)) -> 0 | F77: =IF(N3=0,F75,IF(D75+F75>25000,F75-F76,0)) -> 0 | H77: =IF(N3=0,H75,IF(SUM(D75:I75)>25000,H75-H76,0)) -> 0 | J77: =IF(N3=0,J75,IF(SUM(D75:K75)>25000,J75-J76,0)) -> 0 | L77: =IF(N3=0,L75,IF(SUM(D75:M75)>25000,L75-L76,0)) -> 0 | N77: =SUM(D77:M77) -> 0
A80: Name: | D80: Year 1 | F80: Year 2 | H80: Year 3 | J80: Year 4 | L80: Year 5 | N80: TOTAL
A81: Sub 8
A82: Direct Costs | N82: =SUM(D82:M82) -> 0
A83: Indirect Costs | N83: =SUM(D83:M83) -> 0
A84: Total | D84: =SUM(D82:E83) -> 0 | F84: =SUM(F82:G83) -> 0 | H84: =SUM(H82:I83) -> 0 | J84: =SUM(J82:K83) -> 0 | L84: =SUM(L82:M83) -> 0 | N84: =SUM(D84:M84) -> 0
A85: <$25K | D85: =IF(N3=0,0,IF(D84<=25000,D84,25000)) -> 0 | F85: =IF(N3=0,0,IF(SUM(D84:G84)<=25000,F84,25000-D85)) -> 0 | H85: =IF(N3=0,0,IF(SUM(D84:I84)<=25000,H84,25000-F85-D85)) -> 0 | J85: =IF(N3=0,0,IF(SUM(D84:K84)<=25000,J84,25000-D85-F85-H85)) -> 0 | L85: =IF(N3=0,0,IF(SUM(F84:M84)<=25000,L84,25000-F85-H85-J85-D85)) -> 0 | N85: =SUM(D85:M85) -> 0
A86: >$25K | D86: =IF(N3=0,D84,IF(D84>25000,D84-25000,0)) -> 0 | F86: =IF(N3=0,F84,IF(D84+F84>25000,F84-F85,0)) -> 0 | H86: =IF(N3=0,H84,IF(SUM(D84:I84)>25000,H84-H85,0)) -> 0 | J86: =IF(N3=0,J84,IF(SUM(D84:K84)>25000,J84-J85,0)) -> 0 | L86: =IF(N3=0,L84,IF(SUM(D84:M84)>25000,L84-L85,0)) -> 0 | N86: =SUM(D86:M86) -> 0
A89: Name: | D89: Year 1 | F89: Year 2 | H89: Year 3 | J89: Year 4 | L89: Year 5 | N89: TOTAL
A90: Sub 9
A91: Direct Costs | N91: =SUM(D91:M91) -> 0
A92: Indirect Costs | N92: =SUM(D92:M92) -> 0
A93: Total | D93: =SUM(D91:E92) -> 0 | F93: =SUM(F91:G92) -> 0 | H93: =SUM(H91:I92) -> 0 | J93: =SUM(J91:K92) -> 0 | L93: =SUM(L91:M92) -> 0 | N93: =SUM(D93:M93) -> 0
A94: <$25K | D94: =IF(N3=0,0,IF(D93<=25000,D93,25000)) -> 0 | F94: =IF(N3=0,0,IF(SUM(D93:G93)<=25000,F93,25000-D94)) -> 0 | H94: =IF(N3=0,0,IF(SUM(D93:I93)<=25000,H93,25000-F94-D94)) -> 0 | J94: =IF(N3=0,0,IF(SUM(D93:K93)<=25000,J93,25000-D94-F94-H94)) -> 0 | L94: =IF(N3=0,0,IF(SUM(F93:M93)<=25000,L93,25000-F94-H94-J94-D94)) -> 0 | N94: =SUM(D94:M94) -> 0
A95: >$25K | D95: =IF(N3=0,D93,IF(D93>25000,D93-25000,0)) -> 0 | F95: =IF(N3=0,F93,IF(D93+F93>25000,F93-F94,0)) -> 0 | H95: =IF(N3=0,H93,IF(SUM(D93:I93)>25000,H93-H94,0)) -> 0 | J95: =IF(N3=0,J93,IF(SUM(D93:K93)>25000,J93-J94,0)) -> 0 | L95: =IF(N3=0,L93,IF(SUM(D93:M93)>25000,L93-L94,0)) -> 0 | N95: =SUM(D95:M95) -> 0
A98: Name: | D98: Year 1 | F98: Year 2 | H98: Year 3 | J98: Year 4 | L98: Year 5 | N98: TOTAL
A99: Sub 10
A100: Direct Costs | N100: =SUM(D100:M100) -> 0
A101: Indirect Costs | N101: =SUM(D101:M101) -> 0
A102: Total | D102: =SUM(D100:E101) -> 0 | F102: =SUM(F100:G101) -> 0 | H102: =SUM(H100:I101) -> 0 | J102: =SUM(J100:K101) -> 0 | L102: =SUM(L100:M101) -> 0 | N102: =SUM(D102:M102) -> 0
A103: <$25K | D103: =IF(N3=0,0,IF(D102<=25000,D102,25000)) -> 0 | F103: =IF(N3=0,0,IF(SUM(D102:G102)<=25000,F102,25000-D103)) -> 0 | H103: =IF(N3=0,0,IF(SUM(D102:I102)<=25000,H102,25000-F103-D103)) -> 0 | J103: =IF(N3=0,0,IF(SUM(D102:K102)<=25000,J102,25000-D103-F103-H103)) -> 0 | L103: =IF(N3=0,0,IF(SUM(F102:M102)<=25000,L102,25000-F103-H103-J103-D103)) -> 0 | N103: =SUM(D103:M103) -> 0
A104: >$25K | D104: =IF(N3=0,D102,IF(D102>25000,D102-25000,0)) -> 0 | F104: =IF(N3=0,F102,IF(D102+F102>25000,F102-F103,0)) -> 0 | H104: =IF(N3=0,H102,IF(SUM(D102:I102)>25000,H102-H103,0)) -> 0 | J104: =IF(N3=0,J102,IF(SUM(D102:K102)>25000,J102-J103,0)) -> 0 | L104: =IF(N3=0,L102,IF(SUM(D102:M102)>25000,L102-L103,0)) -> 0 | N104: =SUM(D104:M104) -> 0
D107: Year 1 | F107: Year 2 | H107: Year 3 | J107: Year 4 | L107: Year 5 | N107: TOTAL
A108: Total
A109: Direct Costs | D109: =SUM(D37,D28,D19,D46,D55,D64,D73,D82,D91,D100) -> 0 | F109: =SUM(F37,F28,F19,F46,F55,F64,F73,F82,F91,F100) -> 0 | H109: =SUM(H37,H28,H19,H46,H55,H64,H73,H82,H91,H100) -> 0 | J109: =SUM(J37,J28,J19,J46,J55,J64,J73,J82,J91,J100) -> 0 | L109: =SUM(L37,L28,L19,L46,L55,L64,L73,L82,L91,L100) -> 0 | N109: =SUM(D109:M109) -> 0
A110: Indirect Costs | D110: =SUM(D38,D29,D20,D47,D56,D65,D74,D83,D92,D101) -> 0 | F110: =SUM(F38,F29,F20,F47,F56,F65,F74,F83,F92,F101) -> 0 | H110: =SUM(H38,H29,H20,H47,H56,H65,H74,H83,H92,H101) -> 0 | J110: =SUM(J38,J29,J20,J47,J56,J65,J74,J83,J92,J101) -> 0 | L110: =SUM(L38,L29,L20,L47,L56,L65,L74,L83,L92,L101) -> 0 | N110: =SUM(D110:M110) -> 0
A111: Total | D111: =SUM(D109:E110) -> 0 | F111: =SUM(F109:G110) -> 0 | H111: =SUM(H109:I110) -> 0 | J111: =SUM(J109:K110) -> 0 | L111: =SUM(L109:M110) -> 0 | N111: =SUM(D111:M111) -> 0
A112: <$25K | D112: =SUM(D40,D31,D22,D49,D58,D67,D76,D85,D94,D103) -> 0 | F112: =SUM(F40,F31,F22,F49,F58,F67,F76,F85,F94,F103) -> 0 | H112: =SUM(H40,H31,H22,H49,H58,H67,H76,H85,H94,H103) -> 0 | J112: =SUM(J40,J31,J22,J49,J58,J67,J76,J85,J94,J103) -> 0 | L112: =SUM(L40,L31,L22,L49,L58,L67,L76,L85,L94,L103) -> 0 | N112: =SUM(D112:M112) -> 0
A113: >$25K | D113: =SUM(D41,D32,D23,D50,D59,D68,D77,D86,D95,D104) -> 0 | F113: =SUM(F41,F32,F23,F50,F59,F68,F77,F86,F95,F104) -> 0 | H113: =SUM(H41,H32,H23,H50,H59,H68,H77,H86,H95,H104) -> 0 | J113: =SUM(J41,J32,J23,J50,J59,J68,J77,J86,J95,J104) -> 0 | L113: =SUM(L41,L32,L23,L50,L59,L68,L77,L86,L95,L104) -> 0 | N113: =SUM(D113:M113) -> 0
B115: COMMENTS:

Sheet Equip Trav PartCost
A3: Texas Tech University, Office of Research Services
A4: Project Budget Template
B7: Project Summary | E7: Year 1 | G7: Year 2 | I7: Year 3 | K7: Year 4 | M7: Year 5 | O7: Total
B8: Total Direct Costs | E8: ='Detailed Budget'!D77 -> 0 | G8: ='Detailed Budget'!F77 -> 0 | I8: ='Detailed Budget'!H77 -> 0 | K8: ='Detailed Budget'!J77 -> 0 | M8: ='Detailed Budget'!L77 -> 0 | O8: ='Detailed Budget'!N77 -> 0
B9: Modified Total Direct Costs | E9: ='Detailed Budget'!D78 -> 0 | G9: ='Detailed Budget'!F78 -> 0 | I9: ='Detailed Budget'!H78 -> 0 | K9: ='Detailed Budget'!J78 -> 0 | M9: ='Detailed Budget'!L78 -> 0 | O9: ='Detailed Budget'!N78 -> 0
B10: TDC minus Subs | E10: ='Detailed Budget'!D79 -> 0 | G10: ='Detailed Budget'!F79 -> 0 | I10: ='Detailed Budget'!H79 -> 0 | K10: ='Detailed Budget'!J79 -> 0 | M10: ='Detailed Budget'!L79 -> 0 | O10: ='Detailed Budget'!N79 -> 0
B11: F&A | E11: ='Detailed Budget'!D80 -> 0 | G11: ='Detailed Budget'!F80 -> 0 | I11: ='Detailed Budget'!H80 -> 0 | K11: ='Detailed Budget'!J80 -> 0 | M11: ='Detailed Budget'!L80 -> 0 | O11: ='Detailed Budget'!N80 -> 0
B12: Total Costs | E12: ='Detailed Budget'!D81 -> 0 | G12: ='Detailed Budget'!F81 -> 0 | I12: ='Detailed Budget'!H81 -> 0 | K12: ='Detailed Budget'!J81 -> 0 | M12: ='Detailed Budget'!L81 -> 0 | O12: ='Detailed Budget'!N81 -> 0
A14: Equipment
A15: Year | B15: Item | E15: Number of Items | G15: Price | I15: Total | X15: Instructions on Entering Travel
I16: =E16*G16 -> 0
I17: 0 | X17: Year | Z17: Type in the appropriate Year (ie: 1-5).
I18: 0 | X18: Month | Z18: Type in month expense will occur, if necessary.
I19: 0 | X19: Travel Type | Z19: Please select one from the drop down menu: State, Domestic, Foreign.
I20: 0 | X20: Departure Location | Z20: Type in Departure Location.
I21: 0 | X21: Arrival Destination | Z21: Type in Arrival Destination.
E22: TOTAL | I22: =SUM(I16:J21) -> 0 | X22: Number of Trips | Z22: Type in the expected number of trips.
X23: # of Travelers | Z23: Type in the expected number of travelers.
X24: Number of Days | Z24: Type in the expected number of days.
X25: Number of Nights | Z25: Type in the expected number of nights.
A26: Travel | X26: Meeting Registration | Z26: Type in amount of meeting registration, if applicable.
A27: Year | B27: Month | C27: Travel Type | E27: Departure Location | G27: Arrival Destination | I27: Number of Trips | J27: # of Travelers | K27: Number of Days | L27: Number of Nights | M27: Meeting Registration | O27: Rental Car/Ground Transport | Q27: Airfare | R27: Lodging | S27: Per Diem | T27: Total | X27: Rental Car/Ground Transport | Z27: Type in expected amount of rental car or ground transportation expenses. If you need assistance for estimate, please contact your ORS Administrator. Current mileage reimbusrement rate: https://fmx.cpa.texas.gov/fmx/travel/textravel/rates/current.php
T29: =I29*J29*K29*S29+I29*J29*L29*R29+M29*J29*I29+O29*I29+J29*Q29*I29 -> 0 | X29: Airfare | Z29: Type in expected amount of airefare. If you need assistance with an estimate, please contact your ORS Administrator.
T30: =I30*J30*K30*S30+I30*J30*L30*R30+M30*J30*I30+O30*I30+J30*Q30*I30 -> 0
T31: 0 | X31: Lodging | Z31: Type in the allowed per diem for lodging based on location. Use https://www.gsa.gov/travel/plan-book/per-diem-rates or contact your ORS Administrator.
T32: 0
T33: 0 | X33: Per Diem | Z33: Type in the allowed per diem based on location. Use https://www.gsa.gov/travel/plan-book/per-diem-rates or contact your ORS Administrator.
T34: 0
Q35: TOTAL | T35: =SUM(T29:T34) -> 0 | X35: Total | Z35: This cell will automatically calculate.
X36: Add Row | Z36: If additional rows are needed, please select as needed.
A39: Participant Support Cost | S39: Instructions on Entering Participant Support Cost
A40: Year | B40: Number of Participants | D40: Stipend | G40: Travel | I40: Per Diem | K40: Other | M40: Total
M41: =B41*D41+B41*G41+B41*I41+B41*K41 -> 0 | S41: Year | U41: Type in the appropriate Year (ie: 1-5).
M42: =B42*D42+B42*G42+B42*I42+B42*K42 -> 0 | S42: Number of Participants | U42: Type in number of participants.
M43: 0 | S43: Stipend | U43: Type in amount of expected stipend per participant.
M44: 0 | S44: Travel | U44: Type in expected amount of travel per participant.
M45: 0 | S45: Per Diem | U45: Type in the allowed per diem based on location per participant. Use https://www.gsa.gov/travel/plan-book/per-diem-rates or contact your ORS Administrator.
M46: 0
I47: TOTAL | M47: =SUM(M41:N46) -> 0 | S47: Others | U47: Type in amount of other costs relevant to Participant Support Costs (ie: materials and supplies, conference fees, etc).
S49: Total | U49: This cell will automatically calculate.
S50: Add Row | U50: If additional rows are needed, please select as needed.
B52: COMMENTS:

Sheet Other Direct Costs
A3: Texas Tech University, Office of Research Services
A4: Project Budget Template
A6: Please use this page to itemize
A8: Project Summary | D8: Year 1 | F8: Year 2 | H8: Year 3 | J8: Year 4 | L8: Year 5 | N8: Total
A9: Total Direct Costs | D9: ='Detailed Budget'!D77 -> 0 | F9: ='Detailed Budget'!F77 -> 0 | H9: ='Detailed Budget'!H77 -> 0 | J9: ='Detailed Budget'!J77 -> 0 | L9: ='Detailed Budget'!L77 -> 0 | N9: ='Detailed Budget'!N77 -> 0
A10: Modified Total Direct Costs | D10: ='Detailed Budget'!D78 -> 0 | F10: ='Detailed Budget'!F78 -> 0 | H10: ='Detailed Budget'!H78 -> 0 | J10: ='Detailed Budget'!J78 -> 0 | L10: ='Detailed Budget'!L78 -> 0 | N10: ='Detailed Budget'!N78 -> 0
A11: TDC minus Subs | D11: ='Detailed Budget'!D79 -> 0 | F11: ='Detailed Budget'!F79 -> 0 | H11: ='Detailed Budget'!H79 -> 0 | J11: ='Detailed Budget'!J79 -> 0 | L11: ='Detailed Budget'!L79 -> 0 | N11: ='Detailed Budget'!N79 -> 0
A12: F&A | D12: ='Detailed Budget'!D80 -> 0 | F12: ='Detailed Budget'!F80 -> 0 | H12: ='Detailed Budget'!H80 -> 0 | J12: ='Detailed Budget'!J80 -> 0 | L12: ='Detailed Budget'!L80 -> 0 | N12: ='Detailed Budget'!N80 -> 0
A13: Total Costs | D13: ='Detailed Budget'!D81 -> 0 | F13: ='Detailed Budget'!F81 -> 0 | H13: ='Detailed Budget'!H81 -> 0 | J13: ='Detailed Budget'!J81 -> 0 | L13: ='Detailed Budget'!L81 -> 0 | N13: ='Detailed Budget'!N81 -> 0
A16: Materials & Supplies
A17: Year | B17: Item | J17: # of Items | K17: Price | M17: Total
M18: =J18*K18 -> 0
M19: =J19*K19 -> 0
M20: 0
M21: 0
M22: 0
M23: 0
I24: TOTAL | M24: =SUM(M18:N23) -> 0
A27: Publication Costs | S27: Instructions on Entering M&S, Publication Costs, Human Subject Payments
A28: Year | B28: Item | J28: # of Items | K28: Price | M28: Total
M29: =J29*K29 -> 0 | S29: Year | U29: Type in the appropriate Year (ie: 1-5).
M30: =J30*K30 -> 0 | S30: Item | U30: Type in description of item (ie: slide covers, gloves, glue, headlamps, etc).
M31: 0 | S31: # of Items | U31: Type in number of requested items.
M32: 0 | S32: Price | U32: Type in per unit cost of item.
M33: 0 | S33: Total | U33: This cell will automatically calculate.
M34: 0 | S34: Add Row | U34: If additional rows are needed, please select as needed.
I35: TOTAL | M35: =SUM(M29:N34) -> 0
A38: Professional Service Agreement | S38: Instructions on Entering Professional Services Agreements, Vendor Contracts, Service Centers, Rental, Other Costs
A39: Year | B39: Item | M39: Total
S40: Year | U40: Type in the appropriate Year (ie: 1-5).
S41: Item | U41: Type in description of item (ie: computing, scanning, analysis, etc).
S42: Total | U42: Type in total amount, or "=# of hours X $XX/hour".
S43: Add Row | U43: If additional rows are needed, please select as needed.
I46: TOTAL | M46: =SUM(M40:N45) -> 0
A49: Vendor Contracts
A50: Year | B50: Item | M50: Total
I57: TOTAL | M57: =SUM(M51:N56) -> 0
A60: Service Centers
A61: Year | B61: Item | M61: Total
I68: TOTAL | M68: =SUM(M62:N67) -> 0
A71: Repairs & Maintenance
A72: Year | B72: Item | J72: # of Items | K72: Price | M72: Total
M73: =J73*K73 -> 0
M74: =J74*K74 -> 0
M75: =J75*K75 -> 0
M76: 0
M77: 0
M78: 0
I79: TOTAL | M79: =SUM(M73:N78) -> 0
A82: Human Subject Payment
A83: Year | B83: Subject | J83: # of Subjects | K83: Price | M83: Total
M84: =J84*K84 -> 0
M85: =J85*K85 -> 0
M86: 0
M87: 0
M88: 0
M89: 0
I90: TOTAL | M90: =SUM(M84:N89) -> 0
A93: Animal Cost | T93: Instructions on Entering Animal Costs
A94: Year | B94: Species | D94: # of Animals | E94: Animals/Cage | F94: Biological Safety Level | G94: Per Animal Cost | H94: Per Diem | J94: Number of Days | K94: Breeding Fees | M94: Other Fees | N94: Total
T95: Year | V95: Please select year from drop down menu.
N96: =IF(A96<>"",(D96*G96)+(D96/E96*H96*J96)+M96+K96,"") ->  | T96: Species | V96: Type in animal species (ie: cow, sheep, mice, rat, dog, cat, ferret, etc).
T97: # of Animals | V97: Type in number of animals requested.
T98: Animals/Cage | V98: Type in number of animals per cage. (ie: Mice = up to 5/cage, Rats = up to 3/cage).
T99: Biological Safety Level | V99: Type in Biological Sfatey Level (ie: I, II, III, IV).
N100: =IF(A100<>"",(D100*G100)+(D100/E100*H100*J100)+M100+K100,"") ->  | T100: Per Animal Cost | V100: Type in unit price per animal including shipping.
N101: =IF(A101<>"",(D101*G101)+(D101/E101*H101*J101)+M101+K101,"") ->  | T101: Per Diem | V101: Type in perdiem rate for species per Animal Care Services (https://www.depts.ttu.edu/iacuc/acrc/charges.php).
J102: TOTAL | N102: =SUM(N96:O101) -> 0 | T102: Number of Days | V102: Type in number of days animals are expected to be housed.
T103: Breeding Fees | V103: Type in expected amount of breeding fees. Please contact Animal Care Services for estimate.
T104: Other Fees | V104: Type in expected amount for other fees (ie: vet time, supplies/medications, necropsy, temporary caging, etc).
A105: Rental of Research Space & Equipments | T105: Total | V105: This cell will automatically calculate.
A106: Year | B106: Item Description | M106: Total | T106: Add Row | V106: If additional rows are needed, please select as needed.
I113: TOTAL | M113: =SUM(M107:N112) -> 0
A116: Other Costs, Subject to F&A
A117: Year | B117: Item Description | M117: Total
I124: TOTAL | M124: =SUM(M118:N123) -> 0
A127: Other Costs, Not Subject to F&A
A128: Year | B128: Item Description | M128: Total
I135: TOTAL | M135: =SUM(M129:N134) -> 0
B137: COMMENTS:

Sheet Reference
A2: DO NOT CHANGE OR EDIT THE REFERENCE TABLE.
I4: Reference Table
C8: Benefit Summary
C9: Fringe Rates | H9: Medical and Life Insurance for Full Time
H10: FY23
C11: =18% -> 0.18 | D11: Faculty/ Staff | H11: =_xlfn.IFS(H10="FY23",622.6,H10="",622.6,H10="FY24",622.602*1.1) -> 622.6 | I11: Employee Only
C12: =10% -> 0.1 | D12: Retired Employees | H12: =_xlfn.IFS(H10="FY23",980.6,H10="",980.6,H10="FY24",980.6*1.1) -> 980.6 | I12: Employee and Spouse
C13: =1% -> 0.01 | D13: Students | H13: =_xlfn.IFS(H10="FY23",862.3,H10="",862.3,H10="FY24",862.3*1.1) -> 862.3 | I13: Employee and Children
C14: Insurance escalator | H14: =_xlfn.IFS(H10="FY23",1220.3,H10="",1220.3,H10="FY24",1220.3*1.1) -> 1220.3 | I14: Employee and Family
C15: =10% -> 0.1 | D15: Faculty/ Staff/Studens | H15: =AVERAGE(H11:H14) -> 921.45 | I15: Average for Full Time
H16: =0 -> 0 | I16: No Insurance
C17: Tuition and Fees Escalator | H17: Medical and Life Insurance for Part Time
C18: =5% -> 0.05 | D18: Students Fees | H18: =H11*0.5 -> 311.3 | I18: Employee Only(PT)
H19: =H12*0.5 -> 490.3 | I19: Employee and Spouse(PT)
H20: 431.15 | I20: Employee and Children(PT)
H21: 610.15 | I21: Employee and Family(PT)
H22: 460.725 | I22: Average for Part Time
H23: =0 -> 0 | I23: No Insurance(PT)
C25: Tution Fees Grid for Students
C26: Term | D26: WCOE - Doctoral | F26: WCOE - Master's | H26: All Colleges except WCOE and RCOB - Doctoral | J26: All Colleges Except WCOE & RCOB - Masters | M26: RCOB - Doctoral | O26: RCOB - Masters
C27: 2022-09-01 | D27: 10977 | F27: 10059.2 | H27: 9165 | J27: 9051.2 | M27: 10293 | O27: 9579.2
C28: 2023-01-01 | D28: 11173.14 | F28: 10240.14 | H28: 9323.33 | J28: 9213.24 | M28: 10472.48 | O28: 9751.14
C29: 2023-06-01 | D29: 11369.28 | F29: 10421.07 | H29: 9481.65 | J29: 9375.27 | M29: 10651.95 | O29: 9923.07
C30: 2023-09-01 | D30: 11525.85 | F30: =F27*1.05 -> 10562.16 | H30: =H27*1.05 -> 9623.25 | J30: =J27*1.05 -> 9503.76 | M30: 10807.65 | O30: =O27*1.05 -> 10058.16
C31: 2024-01-01 | D31: 11731.79 | F31: 10752.14 | H31: 9789.49 | J31: =J28*1.05 -> 9673.902 | M31: 10996.1 | O31: 10238.69
C32: 2024-06-01 | D32: 11937.74 | F32: 10942.1235 | H32: 9955.7325 | J32: 9844.0335 | M32: 11184.55 | O32: 10419.2235
B35: COMMENTS:

Sheet Cost Share
C5: Texas Tech University, Office of Research Services: Project Budget Template
C6: Cost Share Budget
C11: Project Summary | F11: Year 1 | H11: Year 2 | J11: Year 3 | L11: Year 4 | N11: Year 5 | P11: Total
C12: Total Direct Costs | F12: ='Detailed Budget'!D77 -> 0 | H12: ='Detailed Budget'!F77 -> 0 | J12: ='Detailed Budget'!H77 -> 0 | L12: ='Detailed Budget'!J77 -> 0 | N12: ='Detailed Budget'!L77 -> 0 | P12: ='Detailed Budget'!N77 -> 0
C13: Modified Total Direct Costs | F13: ='Detailed Budget'!D78 -> 0 | H13: ='Detailed Budget'!F78 -> 0 | J13: ='Detailed Budget'!H78 -> 0 | L13: ='Detailed Budget'!J78 -> 0 | N13: ='Detailed Budget'!L78 -> 0 | P13: ='Detailed Budget'!N78 -> 0
C14: TDC minus Subs | F14: ='Detailed Budget'!D79 -> 0 | H14: ='Detailed Budget'!F79 -> 0 | J14: ='Detailed Budget'!H79 -> 0 | L14: ='Detailed Budget'!J79 -> 0 | N14: ='Detailed Budget'!L79 -> 0 | P14: ='Detailed Budget'!N79 -> 0
C15: F&A | F15: ='Detailed Budget'!D80 -> 0 | H15: ='Detailed Budget'!F80 -> 0 | J15: ='Detailed Budget'!H80 -> 0 | L15: ='Detailed Budget'!J80 -> 0 | N15: ='Detailed Budget'!L80 -> 0 | P15: ='Detailed Budget'!N80 -> 0
C16: Total Costs | F16: ='Detailed Budget'!D81 -> 0 | H16: ='Detailed Budget'!F81 -> 0 | J16: ='Detailed Budget'!H81 -> 0 | L16: ='Detailed Budget'!J81 -> 0 | N16: ='Detailed Budget'!L81 -> 0 | P16: ='Detailed Budget'!N81 -> 0
C19: Cost Share Summary | F19: Year 1 | H19: Year 2 | J19: Year 3 | L19: Year 4 | N19: Year 5 | P19: Total
C20: Total Sponsor Request | F20: ='Detailed Budget'!D81 -> 0 | H20: ='Detailed Budget'!F81 -> 0 | J20: ='Detailed Budget'!H81 -> 0 | L20: ='Detailed Budget'!J81 -> 0 | N20: ='Detailed Budget'!L81 -> 0 | P20: =SUM(F20:O20) -> 0
C21: Total Cost Share | F21: =G92 -> 0 | H21: =I92 -> 0 | J21: =K92 -> 0 | L21: =M92 -> 0 | N21: =O92 -> 0 | P21: =SUM(F21:O21) -> 0
C22: % of Total Project | F22: =IF(F20>0,(F21/(F21+F20)),"-") -> - | H22: =IF(H20>0,(H21/(H21+H20)),"-") -> - | J22: =IF(J20>0,(J21/(J21+J20)),"-") -> - | L22: =IF(L20>0,(L21/(L21+L20)),"-") -> - | N22: =IF(N20>0,(N21/(N21+N20)),"-") -> - | P22: =IF(P20>0,(P21/(P21+P20)),"-") -> -
D25: Year1 | H25: Year 2 | L25: Year 3 | P25: Year 4 | T25: Year 5
A26: Item | D26: Months | E26: Effort | F26: Amount | H26: Months | I26: Effort | J26: Amount | L26: Months | M26: Effort | N26: Amount | P26: Months | Q26: Effort | R26: Amount | T26: Months | U26: Effort | V26: Amount
A27: ='Detailed Budget'!A22 -> 0 | F27: =E27*D27*'Personnel Expense Calculator'!G42 -> 0 | J27: =I27*H27*'Personnel Expense Calculator'!G42 -> 0 | N27: =M27*L27*'Personnel Expense Calculator'!G42 -> 0 | R27: =Q27*P27*'Personnel Expense Calculator'!G42 -> 0 | V27: =T27*U27*'Personnel Expense Calculator'!G42 -> 0
A28: ='Detailed Budget'!A23 -> 0 | F28: =E28*D28*'Personnel Expense Calculator'!G43 -> 0 | J28: =I28*H28*'Personnel Expense Calculator'!G43 -> 0 | N28: =M28*L28*'Personnel Expense Calculator'!G43 -> 0 | R28: =Q28*P28*'Personnel Expense Calculator'!G43 -> 0 | V28: =T28*U28*'Personnel Expense Calculator'!G43 -> 0
A29: ='Detailed Budget'!A24 -> 0 | F29: =E29*D29*'Personnel Expense Calculator'!G44 -> 0 | J29: =I29*H29*'Personnel Expense Calculator'!G44 -> 0 | N29: =M29*L29*'Personnel Expense Calculator'!G44 -> 0 | R29: =Q29*P29*'Personnel Expense Calculator'!G44 -> 0 | V29: =T29*U29*'Personnel Expense Calculator'!G44 -> 0
A30: ='Detailed Budget'!A25 -> 0 | F30: =E30*D30*'Personnel Expense Calculator'!G45 -> 0 | J30: =I30*H30*'Personnel Expense Calculator'!G45 -> 0 | N30: =M30*L30*'Personnel Expense Calculator'!G45 -> 0 | R30: =Q30*P30*'Personnel Expense Calculator'!G45 -> 0 | V30: =T30*U30*'Personnel Expense Calculator'!G45 -> 0
A31: ='Detailed Budget'!A26 -> 0 | F31: =E31*D31*'Personnel Expense Calculator'!G46 -> 0 | J31: =I31*H31*'Personnel Expense Calculator'!G46 -> 0 | N31: =M31*L31*'Personnel Expense Calculator'!G46 -> 0 | R31: =Q31*P31*'Personnel Expense Calculator'!G46 -> 0 | V31: =T31*U31*'Personnel Expense Calculator'!G46 -> 0
A32: ='Detailed Budget'!A27 -> 0 | F32: =E32*D32*'Personnel Expense Calculator'!G47 -> 0 | J32: =I32*H32*'Personnel Expense Calculator'!G47 -> 0 | N32: =M32*L32*'Personnel Expense Calculator'!G47 -> 0 | R32: =Q32*P32*'Personnel Expense Calculator'!G47 -> 0 | V32: =T32*U32*'Personnel Expense Calculator'!G47 -> 0
F33: =SUM(F27:G32) -> 0 | J33: =SUM(J27:K32) -> 0 | N33: =SUM(N27:O32) -> 0 | R33: =SUM(R27:S32) -> 0 | V33: =SUM(V27:W32) -> 0
A38: Personnel Fringe Benefits
D39: Year 1 | F39: Year 2 | H39: Year 3 | J39: Year 4 | L39: Year 5 | N39: Total
A40: =A27 -> 0 | D40: =F27*IF('Personnel Expense Calculator'!E42=Reference!$D$11,Reference!$C$11,IF('Personnel Expense Calculator'!E42=Reference!$D$12,Reference!$C$12,IF('Personnel Expense Calculator'!E42=Reference!$D$13,Reference!$C$13,0)))+(IF('Personnel Expense Calculator'!E42=Reference!$D$13,0,D27*E27*IF('Personnel Expense Calculator'!L42=Reference!$I$11,Reference!$H$11,IF('Personnel Expense Calculator'!L42=Reference!$I$12,Reference!$H$12,IF('Personnel Expense Calculator'!L42=Reference!$I$13,Reference!$H$13,IF('Personnel Expense Calculator'!L42=Reference!$I$14,Reference!$H$14,IF('Personnel Expense Calculator'!L42=Reference!$I$15,Reference!$H$15,IF('Personnel Expense Calculator'!L42=Reference!$I$16,Reference!$H$16,IF('Personnel Expense Calculator'!L42=Reference!$I$18,Reference!$H$18,IF('Personnel Expense Calculator'!L42=Reference!$I$19,Reference!$H$19,IF('Personnel Expense Calculator'!L42=Reference!$I$20,Reference!$H$20,IF('Personnel Expense Calculator'!L42=Reference!$I$21,Reference!$H$21,IF('Personnel Expense Calculator'!L42=Reference!$I$22,Reference!$H$22,IF('Personnel Expense Calculator'!L42=Reference!$I$23,Reference!$H$23,0)))))))))))))) -> 0 | F40: =J27*IF('Personnel Expense Calculator'!E42=Reference!$D$11,Reference!$C$11,IF('Personnel Expense Calculator'!E42=Reference!$D$12,Reference!$C$12,IF('Personnel Expense Calculator'!E42=Reference!$D$13,Reference!$C$13,0)))+(IF('Personnel Expense Calculator'!E42=Reference!$D$13,0,H27*I27*IF('Personnel Expense Calculator'!L42=Reference!$I$11,Reference!$H$11,IF('Personnel Expense Calculator'!L42=Reference!$I$12,Reference!$H$12,IF('Personnel Expense Calculator'!L42=Reference!$I$13,Reference!$H$13,IF('Personnel Expense Calculator'!L42=Reference!$I$14,Reference!$H$14,IF('Personnel Expense Calculator'!L42=Reference!$I$15,Reference!$H$15,IF('Personnel Expense Calculator'!L42=Reference!$I$16,Reference!$H$16,IF('Personnel Expense Calculator'!L42=Reference!$I$18,Reference!$H$18,IF('Personnel Expense Calculator'!L42=Reference!$I$19,Reference!$H$19,IF('Personnel Expense Calculator'!L42=Reference!$I$20,Reference!$H$20,IF('Personnel Expense Calculator'!L42=Reference!$I$21,Reference!$H$21,IF('Personnel Expense Calculator'!L42=Reference!$I$22,Reference!$H$22,IF('Personnel Expense Calculator'!L42=Reference!$I$23,Reference!$H$23,0)))))))))))))) -> 0 | H40: =N27*IF('Personnel Expense Calculator'!E42=Reference!$D$11,Reference!$C$11,IF('Personnel Expense Calculator'!E42=Reference!$D$12,Reference!$C$12,IF('Personnel Expense Calculator'!E42=Reference!$D$13,Reference!$C$13,0)))+(IF('Personnel Expense Calculator'!E42=Reference!$D$13,0,L27*M27*IF('Personnel Expense Calculator'!L42=Reference!$I$11,Reference!$H$11,IF('Personnel Expense Calculator'!L42=Reference!$I$12,Reference!$H$12,IF('Personnel Expense Calculator'!L42=Reference!$I$13,Reference!$H$13,IF('Personnel Expense Calculator'!L42=Reference!$I$14,Reference!$H$14,IF('Personnel Expense Calculator'!L42=Reference!$I$15,Reference!$H$15,IF('Personnel Expense Calculator'!L42=Reference!$I$16,Reference!$H$16,IF('Personnel Expense Calculator'!L42=Reference!$I$18,Reference!$H$18,IF('Personnel Expense Calculator'!L42=Reference!$I$19,Reference!$H$19,IF('Personnel Expense Calculator'!L42=Reference!$I$20,Reference!$H$20,IF('Personnel Expense Calculator'!L42=Reference!$I$21,Reference!$H$21,IF('Personnel Expense Calculator'!L42=Reference!$I$22,Reference!$H$22,IF('Personnel Expense Calculator'!L42=Reference!$I$23,Reference!$H$23,0)))))))))))))) -> 0 | J40: =R27*IF('Personnel Expense Calculator'!E42=Reference!$D$11,Reference!$C$11,IF('Personnel Expense Calculator'!E42=Reference!$D$12,Reference!$C$12,IF('Personnel Expense Calculator'!E42=Reference!$D$13,Reference!$C$13,0)))+(IF('Personnel Expense Calculator'!E42=Reference!$D$13,0,P27*Q27*IF('Personnel Expense Calculator'!L42=Reference!$I$11,Reference!$H$11,IF('Personnel Expense Calculator'!L42=Reference!$I$12,Reference!$H$12,IF('Personnel Expense Calculator'!L42=Reference!$I$13,Reference!$H$13,IF('Personnel Expense Calculator'!L42=Reference!$I$14,Reference!$H$14,IF('Personnel Expense Calculator'!L42=Reference!$I$15,Reference!$H$15,IF('Personnel Expense Calculator'!L42=Reference!$I$16,Reference!$H$16,IF('Personnel Expense Calculator'!L42=Reference!$I$18,Reference!$H$18,IF('Personnel Expense Calculator'!L42=Reference!$I$19,Reference!$H$19,IF('Personnel Expense Calculator'!L42=Reference!$I$20,Reference!$H$20,IF('Personnel Expense Calculator'!L42=Reference!$I$21,Reference!$H$21,IF('Personnel Expense Calculator'!L42=Reference!$I$22,Reference!$H$22,IF('Personnel Expense Calculator'!L42=Reference!$I$23,Reference!$H$23,0)))))))))))))) -> 0 | L40: =V27*IF('Personnel Expense Calculator'!E42=Reference!$D$11,Reference!$C$11,IF('Personnel Expense Calculator'!E42=Reference!$D$12,Reference!$C$12,IF('Personnel Expense Calculator'!E42=Reference!$D$13,Reference!$C$13,0)))+(IF('Personnel Expense Calculator'!E42=Reference!$D$13,0,T27*U27*IF('Personnel Expense Calculator'!L42=Reference!$I$11,Reference!$H$11,IF('Personnel Expense Calculator'!L42=Reference!$I$12,Reference!$H$12,IF('Personnel Expense Calculator'!L42=Reference!$I$13,Reference!$H$13,IF('Personnel Expense Calculator'!L42=Reference!$I$14,Reference!$H$14,IF('Personnel Expense Calculator'!L42=Reference!$I$15,Reference!$H$15,IF('Personnel Expense Calculator'!L42=Reference!$I$16,Reference!$H$16,IF('Personnel Expense Calculator'!L42=Reference!$I$18,Reference!$H$18,IF('Personnel Expense Calculator'!L42=Reference!$I$19,Reference!$H$19,IF('Personnel Expense Calculator'!L42=Reference!$I$20,Reference!$H$20,IF('Personnel Expense Calculator'!L42=Reference!$I$21,Reference!$H$21,IF('Personnel Expense Calculator'!L42=Reference!$I$22,Reference!$H$22,IF('Personnel Expense Calculator'!L42=Reference!$I$23,Reference!$H$23,0)))))))))))))) -> 0 | N40: =SUM(D40:M40) -> 0
A41: 0 | D41: =F28*IF('Personnel Expense Calculator'!E43=Reference!$D$11,Reference!$C$11,IF('Personnel Expense Calculator'!E43=Reference!$D$12,Reference!$C$12,IF('Personnel Expense Calculator'!E43=Reference!$D$13,Reference!$C$13,0)))+(IF('Personnel Expense Calculator'!E43=Reference!$D$13,0,D28*E28*IF('Personnel Expense Calculator'!L43=Reference!$I$11,Reference!$H$11,IF('Personnel Expense Calculator'!L43=Reference!$I$12,Reference!$H$12,IF('Personnel Expense Calculator'!L43=Reference!$I$13,Reference!$H$13,IF('Personnel Expense Calculator'!L43=Reference!$I$14,Reference!$H$14,IF('Personnel Expense Calculator'!L43=Reference!$I$15,Reference!$H$15,IF('Personnel Expense Calculator'!L43=Reference!$I$16,Reference!$H$16,IF('Personnel Expense Calculator'!L43=Reference!$I$18,Reference!$H$18,IF('Personnel Expense Calculator'!L43=Reference!$I$19,Reference!$H$19,IF('Personnel Expense Calculator'!L43=Reference!$I$20,Reference!$H$20,IF('Personnel Expense Calculator'!L43=Reference!$I$21,Reference!$H$21,IF('Personnel Expense Calculator'!L43=Reference!$I$22,Reference!$H$22,IF('Personnel Expense Calculator'!L43=Reference!$I$23,Reference!$H$23,0)))))))))))))) -> 0 | F41: =J28*IF('Personnel Expense Calculator'!E43=Reference!$D$11,Reference!$C$11,IF('Personnel Expense Calculator'!E43=Reference!$D$12,Reference!$C$12,IF('Personnel Expense Calculator'!E43=Reference!$D$13,Reference!$C$13,0)))+(IF('Personnel Expense Calculator'!E43=Reference!$D$13,0,H28*I28*IF('Personnel Expense Calculator'!L43=Reference!$I$11,Reference!$H$11,IF('Personnel Expense Calculator'!L43=Reference!$I$12,Reference!$H$12,IF('Personnel Expense Calculator'!L43=Reference!$I$13,Reference!$H$13,IF('Personnel Expense Calculator'!L43=Reference!$I$14,Reference!$H$14,IF('Personnel Expense Calculator'!L43=Reference!$I$15,Reference!$H$15,IF('Personnel Expense Calculator'!L43=Reference!$I$16,Reference!$H$16,IF('Personnel Expense Calculator'!L43=Reference!$I$18,Reference!$H$18,IF('Personnel Expense Calculator'!L43=Reference!$I$19,Reference!$H$19,IF('Personnel Expense Calculator'!L43=Reference!$I$20,Reference!$H$20,IF('Personnel Expense Calculator'!L43=Reference!$I$21,Reference!$H$21,IF('Personnel Expense Calculator'!L43=Reference!$I$22,Reference!$H$22,IF('Personnel Expense Calculator'!L43=Reference!$I$23,Reference!$H$23,0)))))))))))))) -> 0 | H41: =N28*IF('Personnel Expense Calculator'!E43=Reference!$D$11,Reference!$C$11,IF('Personnel Expense Calculator'!E43=Reference!$D$12,Reference!$C$12,IF('Personnel Expense Calculator'!E43=Reference!$D$13,Reference!$C$13,0)))+(IF('Personnel Expense Calculator'!E43=Reference!$D$13,0,L28*M28*IF('Personnel Expense Calculator'!L43=Reference!$I$11,Reference!$H$11,IF('Personnel Expense Calculator'!L43=Reference!$I$12,Reference!$H$12,IF('Personnel Expense Calculator'!L43=Reference!$I$13,Reference!$H$13,IF('Personnel Expense Calculator'!L43=Reference!$I$14,Reference!$H$14,IF('Personnel Expense Calculator'!L43=Reference!$I$15,Reference!$H$15,IF('Personnel Expense Calculator'!L43=Reference!$I$16,Reference!$H$16,IF('Personnel Expense Calculator'!L43=Reference!$I$18,Reference!$H$18,IF('Personnel Expense Calculator'!L43=Reference!$I$19,Reference!$H$19,IF('Personnel Expense Calculator'!L43=Reference!$I$20,Reference!$H$20,IF('Personnel Expense Calculator'!L43=Reference!$I$21,Reference!$H$21,IF('Personnel Expense Calculator'!L43=Reference!$I$22,Reference!$H$22,IF('Personnel Expense Calculator'!L43=Reference!$I$23,Reference!$H$23,0)))))))))))))) -> 0 | J41: =R28*IF('Personnel Expense Calculator'!E43=Reference!$D$11,Reference!$C$11,IF('Personnel Expense Calculator'!E43=Reference!$D$12,Reference!$C$12,IF('Personnel Expense Calculator'!E43=Reference!$D$13,Reference!$C$13,0)))+(IF('Personnel Expense Calculator'!E43=Reference!$D$13,0,P28*Q28*IF('Personnel Expense Calculator'!L43=Reference!$I$11,Reference!$H$11,IF('Personnel Expense Calculator'!L43=Reference!$I$12,Reference!$H$12,IF('Personnel Expense Calculator'!L43=Reference!$I$13,Reference!$H$13,IF('Personnel Expense Calculator'!L43=Reference!$I$14,Reference!$H$14,IF('Personnel Expense Calculator'!L43=Reference!$I$15,Reference!$H$15,IF('Personnel Expense Calculator'!L43=Reference!$I$16,Reference!$H$16,IF('Personnel Expense Calculator'!L43=Reference!$I$18,Reference!$H$18,IF('Personnel Expense Calculator'!L43=Reference!$I$19,Reference!$H$19,IF('Personnel Expense Calculator'!L43=Reference!$I$20,Reference!$H$20,IF('Personnel Expense Calculator'!L43=Reference!$I$21,Reference!$H$21,IF('Personnel Expense Calculator'!L43=Reference!$I$22,Reference!$H$22,IF('Personnel Expense Calculator'!L43=Reference!$I$23,Reference!$H$23,0)))))))))))))) -> 0 | L41: =V28*IF('Personnel Expense Calculator'!E43=Reference!$D$11,Reference!$C$11,IF('Personnel Expense Calculator'!E43=Reference!$D$12,Reference!$C$12,IF('Personnel Expense Calculator'!E43=Reference!$D$13,Reference!$C$13,0)))+(IF('Personnel Expense Calculator'!E43=Reference!$D$13,0,T28*U28*IF('Personnel Expense Calculator'!L43=Reference!$I$11,Reference!$H$11,IF('Personnel Expense Calculator'!L43=Reference!$I$12,Reference!$H$12,IF('Personnel Expense Calculator'!L43=Reference!$I$13,Reference!$H$13,IF('Personnel Expense Calculator'!L43=Reference!$I$14,Reference!$H$14,IF('Personnel Expense Calculator'!L43=Reference!$I$15,Reference!$H$15,IF('Personnel Expense Calculator'!L43=Reference!$I$16,Reference!$H$16,IF('Personnel Expense Calculator'!L43=Reference!$I$18,Reference!$H$18,IF('Personnel Expense Calculator'!L43=Reference!$I$19,Reference!$H$19,IF('Personnel Expense Calculator'!L43=Reference!$I$20,Reference!$H$20,IF('Personnel Expense Calculator'!L43=Reference!$I$21,Reference!$H$21,IF('Personnel Expense Calculator'!L43=Reference!$I$22,Reference!$H$22,IF('Personnel Expense Calculator'!L43=Reference!$I$23,Reference!$H$23,0)))))))))))))) -> 0 | N41: =SUM(D41:M41) -> 0
A42: 0 | D42: =F29*IF('Personnel Expense Calculator'!E44=Reference!$D$11,Reference!$C$11,IF('Personnel Expense Calculator'!E44=Reference!$D$12,Reference!$C$12,IF('Personnel Expense Calculator'!E44=Reference!$D$13,Reference!$C$13,0)))+(IF('Personnel Expense Calculator'!E44=Reference!$D$13,0,D29*E29*IF('Personnel Expense Calculator'!L44=Reference!$I$11,Reference!$H$11,IF('Personnel Expense Calculator'!L44=Reference!$I$12,Reference!$H$12,IF('Personnel Expense Calculator'!L44=Reference!$I$13,Reference!$H$13,IF('Personnel Expense Calculator'!L44=Reference!$I$14,Reference!$H$14,IF('Personnel Expense Calculator'!L44=Reference!$I$15,Reference!$H$15,IF('Personnel Expense Calculator'!L44=Reference!$I$16,Reference!$H$16,IF('Personnel Expense Calculator'!L44=Reference!$I$18,Reference!$H$18,IF('Personnel Expense Calculator'!L44=Reference!$I$19,Reference!$H$19,IF('Personnel Expense Calculator'!L44=Reference!$I$20,Reference!$H$20,IF('Personnel Expense Calculator'!L44=Reference!$I$21,Reference!$H$21,IF('Personnel Expense Calculator'!L44=Reference!$I$22,Reference!$H$22,IF('Personnel Expense Calculator'!L44=Reference!$I$23,Reference!$H$23,0)))))))))))))) -> 0 | F42: =J29*IF('Personnel Expense Calculator'!E44=Reference!$D$11,Reference!$C$11,IF('Personnel Expense Calculator'!E44=Reference!$D$12,Reference!$C$12,IF('Personnel Expense Calculator'!E44=Reference!$D$13,Reference!$C$13,0)))+(IF('Personnel Expense Calculator'!E44=Reference!$D$13,0,H29*I29*IF('Personnel Expense Calculator'!L44=Reference!$I$11,Reference!$H$11,IF('Personnel Expense Calculator'!L44=Reference!$I$12,Reference!$H$12,IF('Personnel Expense Calculator'!L44=Reference!$I$13,Reference!$H$13,IF('Personnel Expense Calculator'!L44=Reference!$I$14,Reference!$H$14,IF('Personnel Expense Calculator'!L44=Reference!$I$15,Reference!$H$15,IF('Personnel Expense Calculator'!L44=Reference!$I$16,Reference!$H$16,IF('Personnel Expense Calculator'!L44=Reference!$I$18,Reference!$H$18,IF('Personnel Expense Calculator'!L44=Reference!$I$19,Reference!$H$19,IF('Personnel Expense Calculator'!L44=Reference!$I$20,Reference!$H$20,IF('Personnel Expense Calculator'!L44=Reference!$I$21,Reference!$H$21,IF('Personnel Expense Calculator'!L44=Reference!$I$22,Reference!$H$22,IF('Personnel Expense Calculator'!L44=Reference!$I$23,Reference!$H$23,0)))))))))))))) -> 0 | H42: =N29*IF('Personnel Expense Calculator'!E44=Reference!$D$11,Reference!$C$11,IF('Personnel Expense Calculator'!E44=Reference!$D$12,Reference!$C$12,IF('Personnel Expense Calculator'!E44=Reference!$D$13,Reference!$C$13,0)))+(IF('Personnel Expense Calculator'!E44=Reference!$D$13,0,L29*M29*IF('Personnel Expense Calculator'!L44=Reference!$I$11,Reference!$H$11,IF('Personnel Expense Calculator'!L44=Reference!$I$12,Reference!$H$12,IF('Personnel Expense Calculator'!L44=Reference!$I$13,Reference!$H$13,IF('Personnel Expense Calculator'!L44=Reference!$I$14,Reference!$H$14,IF('Personnel Expense Calculator'!L44=Reference!$I$15,Reference!$H$15,IF('Personnel Expense Calculator'!L44=Reference!$I$16,Reference!$H$16,IF('Personnel Expense Calculator'!L44=Reference!$I$18,Reference!$H$18,IF('Personnel Expense Calculator'!L44=Reference!$I$19,Reference!$H$19,IF('Personnel Expense Calculator'!L44=Reference!$I$20,Reference!$H$20,IF('Personnel Expense Calculator'!L44=Reference!$I$21,Reference!$H$21,IF('Personnel Expense Calculator'!L44=Reference!$I$22,Reference!$H$22,IF('Personnel Expense Calculator'!L44=Reference!$I$23,Reference!$H$23,0)))))))))))))) -> 0 | J42: =R29*IF('Personnel Expense Calculator'!E44=Reference!$D$11,Reference!$C$11,IF('Personnel Expense Calculator'!E44=Reference!$D$12,Reference!$C$12,IF('Personnel Expense Calculator'!E44=Reference!$D$13,Reference!$C$13,0)))+(IF('Personnel Expense Calculator'!E44=Reference!$D$13,0,P29*Q29*IF('Personnel Expense Calculator'!L44=Reference!$I$11,Reference!$H$11,IF('Personnel Expense Calculator'!L44=Reference!$I$12,Reference!$H$12,IF('Personnel Expense Calculator'!L44=Reference!$I$13,Reference!$H$13,IF('Personnel Expense Calculator'!L44=Reference!$I$14,Reference!$H$14,IF('Personnel Expense Calculator'!L44=Reference!$I$15,Reference!$H$15,IF('Personnel Expense Calculator'!L44=Reference!$I$16,Reference!$H$16,IF('Personnel Expense Calculator'!L44=Reference!$I$18,Reference!$H$18,IF('Personnel Expense Calculator'!L44=Reference!$I$19,Reference!$H$19,IF('Personnel Expense Calculator'!L44=Reference!$I$20,Reference!$H$20,IF('Personnel Expense Calculator'!L44=Reference!$I$21,Reference!$H$21,IF('Personnel Expense Calculator'!L44=Reference!$I$22,Reference!$H$22,IF('Personnel Expense Calculator'!L44=Reference!$I$23,Reference!$H$23,0)))))))))))))) -> 0 | L42: =V29*IF('Personnel Expense Calculator'!E44=Reference!$D$11,Reference!$C$11,IF('Personnel Expense Calculator'!E44=Reference!$D$12,Reference!$C$12,IF('Personnel Expense Calculator'!E44=Reference!$D$13,Reference!$C$13,0)))+(IF('Personnel Expense Calculator'!E44=Reference!$D$13,0,T29*U29*IF('Personnel Expense Calculator'!L44=Reference!$I$11,Reference!$H$11,IF('Personnel Expense Calculator'!L44=Reference!$I$12,Reference!$H$12,IF('Personnel Expense Calculator'!L44=Reference!$I$13,Reference!$H$13,IF('Personnel Expense Calculator'!L44=Reference!$I$14,Reference!$H$14,IF('Personnel Expense Calculator'!L44=Reference!$I$15,Reference!$H$15,IF('Personnel Expense Calculator'!L44=Reference!$I$16,Reference!$H$16,IF('Personnel Expense Calculator'!L44=Reference!$I$18,Reference!$H$18,IF('Personnel Expense Calculator'!L44=Reference!$I$19,Reference!$H$19,IF('Personnel Expense Calculator'!L44=Reference!$I$20,Reference!$H$20,IF('Personnel Expense Calculator'!L44=Reference!$I$21,Reference!$H$21,IF('Personnel Expense Calculator'!L44=Reference!$I$22,Reference!$H$22,IF('Personnel Expense Calculator'!L44=Reference!$I$23,Reference!$H$23,0)))))))))))))) -> 0 | N42: =SUM(D42:M42) -> 0
A43: 0 | D43: =F30*IF('Personnel Expense Calculator'!E45=Reference!$D$11,Reference!$C$11,IF('Personnel Expense Calculator'!E45=Reference!$D$12,Reference!$C$12,IF('Personnel Expense Calculator'!E45=Reference!$D$13,Reference!$C$13,0)))+(IF('Personnel Expense Calculator'!E45=Reference!$D$13,0,D30*E30*IF('Personnel Expense Calculator'!L45=Reference!$I$11,Reference!$H$11,IF('Personnel Expense Calculator'!L45=Reference!$I$12,Reference!$H$12,IF('Personnel Expense Calculator'!L45=Reference!$I$13,Reference!$H$13,IF('Personnel Expense Calculator'!L45=Reference!$I$14,Reference!$H$14,IF('Personnel Expense Calculator'!L45=Reference!$I$15,Reference!$H$15,IF('Personnel Expense Calculator'!L45=Reference!$I$16,Reference!$H$16,IF('Personnel Expense Calculator'!L45=Reference!$I$18,Reference!$H$18,IF('Personnel Expense Calculator'!L45=Reference!$I$19,Reference!$H$19,IF('Personnel Expense Calculator'!L45=Reference!$I$20,Reference!$H$20,IF('Personnel Expense Calculator'!L45=Reference!$I$21,Reference!$H$21,IF('Personnel Expense Calculator'!L45=Reference!$I$22,Reference!$H$22,IF('Personnel Expense Calculator'!L45=Reference!$I$23,Reference!$H$23,0)))))))))))))) -> 0 | F43: =J30*IF('Personnel Expense Calculator'!E45=Reference!$D$11,Reference!$C$11,IF('Personnel Expense Calculator'!E45=Reference!$D$12,Reference!$C$12,IF('Personnel Expense Calculator'!E45=Reference!$D$13,Reference!$C$13,0)))+(IF('Personnel Expense Calculator'!E45=Reference!$D$13,0,H30*I30*IF('Personnel Expense Calculator'!L45=Reference!$I$11,Reference!$H$11,IF('Personnel Expense Calculator'!L45=Reference!$I$12,Reference!$H$12,IF('Personnel Expense Calculator'!L45=Reference!$I$13,Reference!$H$13,IF('Personnel Expense Calculator'!L45=Reference!$I$14,Reference!$H$14,IF('Personnel Expense Calculator'!L45=Reference!$I$15,Reference!$H$15,IF('Personnel Expense Calculator'!L45=Reference!$I$16,Reference!$H$16,IF('Personnel Expense Calculator'!L45=Reference!$I$18,Reference!$H$18,IF('Personnel Expense Calculator'!L45=Reference!$I$19,Reference!$H$19,IF('Personnel Expense Calculator'!L45=Reference!$I$20,Reference!$H$20,IF('Personnel Expense Calculator'!L45=Reference!$I$21,Reference!$H$21,IF('Personnel Expense Calculator'!L45=Reference!$I$22,Reference!$H$22,IF('Personnel Expense Calculator'!L45=Reference!$I$23,Reference!$H$23,0)))))))))))))) -> 0 | H43: =N30*IF('Personnel Expense Calculator'!E45=Reference!$D$11,Reference!$C$11,IF('Personnel Expense Calculator'!E45=Reference!$D$12,Reference!$C$12,IF('Personnel Expense Calculator'!E45=Reference!$D$13,Reference!$C$13,0)))+(IF('Personnel Expense Calculator'!E45=Reference!$D$13,0,L30*M30*IF('Personnel Expense Calculator'!L45=Reference!$I$11,Reference!$H$11,IF('Personnel Expense Calculator'!L45=Reference!$I$12,Reference!$H$12,IF('Personnel Expense Calculator'!L45=Reference!$I$13,Reference!$H$13,IF('Personnel Expense Calculator'!L45=Reference!$I$14,Reference!$H$14,IF('Personnel Expense Calculator'!L45=Reference!$I$15,Reference!$H$15,IF('Personnel Expense Calculator'!L45=Reference!$I$16,Reference!$H$16,IF('Personnel Expense Calculator'!L45=Reference!$I$18,Reference!$H$18,IF('Personnel Expense Calculator'!L45=Reference!$I$19,Reference!$H$19,IF('Personnel Expense Calculator'!L45=Reference!$I$20,Reference!$H$20,IF('Personnel Expense Calculator'!L45=Reference!$I$21,Reference!$H$21,IF('Personnel Expense Calculator'!L45=Reference!$I$22,Reference!$H$22,IF('Personnel Expense Calculator'!L45=Reference!$I$23,Reference!$H$23,0)))))))))))))) -> 0 | J43: =R30*IF('Personnel Expense Calculator'!E45=Reference!$D$11,Reference!$C$11,IF('Personnel Expense Calculator'!E45=Reference!$D$12,Reference!$C$12,IF('Personnel Expense Calculator'!E45=Reference!$D$13,Reference!$C$13,0)))+(IF('Personnel Expense Calculator'!E45=Reference!$D$13,0,P30*Q30*IF('Personnel Expense Calculator'!L45=Reference!$I$11,Reference!$H$11,IF('Personnel Expense Calculator'!L45=Reference!$I$12,Reference!$H$12,IF('Personnel Expense Calculator'!L45=Reference!$I$13,Reference!$H$13,IF('Personnel Expense Calculator'!L45=Reference!$I$14,Reference!$H$14,IF('Personnel Expense Calculator'!L45=Reference!$I$15,Reference!$H$15,IF('Personnel Expense Calculator'!L45=Reference!$I$16,Reference!$H$16,IF('Personnel Expense Calculator'!L45=Reference!$I$18,Reference!$H$18,IF('Personnel Expense Calculator'!L45=Reference!$I$19,Reference!$H$19,IF('Personnel Expense Calculator'!L45=Reference!$I$20,Reference!$H$20,IF('Personnel Expense Calculator'!L45=Reference!$I$21,Reference!$H$21,IF('Personnel Expense Calculator'!L45=Reference!$I$22,Reference!$H$22,IF('Personnel Expense Calculator'!L45=Reference!$I$23,Reference!$H$23,0)))))))))))))) -> 0 | L43: =V30*IF('Personnel Expense Calculator'!E45=Reference!$D$11,Reference!$C$11,IF('Personnel Expense Calculator'!E45=Reference!$D$12,Reference!$C$12,IF('Personnel Expense Calculator'!E45=Reference!$D$13,Reference!$C$13,0)))+(IF('Personnel Expense Calculator'!E45=Reference!$D$13,0,T30*U30*IF('Personnel Expense Calculator'!L45=Reference!$I$11,Reference!$H$11,IF('Personnel Expense Calculator'!L45=Reference!$I$12,Reference!$H$12,IF('Personnel Expense Calculator'!L45=Reference!$I$13,Reference!$H$13,IF('Personnel Expense Calculator'!L45=Reference!$I$14,Reference!$H$14,IF('Personnel Expense Calculator'!L45=Reference!$I$15,Reference!$H$15,IF('Personnel Expense Calculator'!L45=Reference!$I$16,Reference!$H$16,IF('Personnel Expense Calculator'!L45=Reference!$I$18,Reference!$H$18,IF('Personnel Expense Calculator'!L45=Reference!$I$19,Reference!$H$19,IF('Personnel Expense Calculator'!L45=Reference!$I$20,Reference!$H$20,IF('Personnel Expense Calculator'!L45=Reference!$I$21,Reference!$H$21,IF('Personnel Expense Calculator'!L45=Reference!$I$22,Reference!$H$22,IF('Personnel Expense Calculator'!L45=Reference!$I$23,Reference!$H$23,0)))))))))))))) -> 0 | N43: 0
A44: 0 | D44: =F31*IF('Personnel Expense Calculator'!E46=Reference!$D$11,Reference!$C$11,IF('Personnel Expense Calculator'!E46=Reference!$D$12,Reference!$C$12,IF('Personnel Expense Calculator'!E46=Reference!$D$13,Reference!$C$13,0)))+(IF('Personnel Expense Calculator'!E46=Reference!$D$13,0,D31*E31*IF('Personnel Expense Calculator'!L46=Reference!$I$11,Reference!$H$11,IF('Personnel Expense Calculator'!L46=Reference!$I$12,Reference!$H$12,IF('Personnel Expense Calculator'!L46=Reference!$I$13,Reference!$H$13,IF('Personnel Expense Calculator'!L46=Reference!$I$14,Reference!$H$14,IF('Personnel Expense Calculator'!L46=Reference!$I$15,Reference!$H$15,IF('Personnel Expense Calculator'!L46=Reference!$I$16,Reference!$H$16,IF('Personnel Expense Calculator'!L46=Reference!$I$18,Reference!$H$18,IF('Personnel Expense Calculator'!L46=Reference!$I$19,Reference!$H$19,IF('Personnel Expense Calculator'!L46=Reference!$I$20,Reference!$H$20,IF('Personnel Expense Calculator'!L46=Reference!$I$21,Reference!$H$21,IF('Personnel Expense Calculator'!L46=Reference!$I$22,Reference!$H$22,IF('Personnel Expense Calculator'!L46=Reference!$I$23,Reference!$H$23,0)))))))))))))) -> 0 | F44: =J31*IF('Personnel Expense Calculator'!E46=Reference!$D$11,Reference!$C$11,IF('Personnel Expense Calculator'!E46=Reference!$D$12,Reference!$C$12,IF('Personnel Expense Calculator'!E46=Reference!$D$13,Reference!$C$13,0)))+(IF('Personnel Expense Calculator'!E46=Reference!$D$13,0,H31*I31*IF('Personnel Expense Calculator'!L46=Reference!$I$11,Reference!$H$11,IF('Personnel Expense Calculator'!L46=Reference!$I$12,Reference!$H$12,IF('Personnel Expense Calculator'!L46=Reference!$I$13,Reference!$H$13,IF('Personnel Expense Calculator'!L46=Reference!$I$14,Reference!$H$14,IF('Personnel Expense Calculator'!L46=Reference!$I$15,Reference!$H$15,IF('Personnel Expense Calculator'!L46=Reference!$I$16,Reference!$H$16,IF('Personnel Expense Calculator'!L46=Reference!$I$18,Reference!$H$18,IF('Personnel Expense Calculator'!L46=Reference!$I$19,Reference!$H$19,IF('Personnel Expense Calculator'!L46=Reference!$I$20,Reference!$H$20,IF('Personnel Expense Calculator'!L46=Reference!$I$21,Reference!$H$21,IF('Personnel Expense Calculator'!L46=Reference!$I$22,Reference!$H$22,IF('Personnel Expense Calculator'!L46=Reference!$I$23,Reference!$H$23,0)))))))))))))) -> 0 | H44: =N31*IF('Personnel Expense Calculator'!E46=Reference!$D$11,Reference!$C$11,IF('Personnel Expense Calculator'!E46=Reference!$D$12,Reference!$C$12,IF('Personnel Expense Calculator'!E46=Reference!$D$13,Reference!$C$13,0)))+(IF('Personnel Expense Calculator'!E46=Reference!$D$13,0,L31*M31*IF('Personnel Expense Calculator'!L46=Reference!$I$11,Reference!$H$11,IF('Personnel Expense Calculator'!L46=Reference!$I$12,Reference!$H$12,IF('Personnel Expense Calculator'!L46=Reference!$I$13,Reference!$H$13,IF('Personnel Expense Calculator'!L46=Reference!$I$14,Reference!$H$14,IF('Personnel Expense Calculator'!L46=Reference!$I$15,Reference!$H$15,IF('Personnel Expense Calculator'!L46=Reference!$I$16,Reference!$H$16,IF('Personnel Expense Calculator'!L46=Reference!$I$18,Reference!$H$18,IF('Personnel Expense Calculator'!L46=Reference!$I$19,Reference!$H$19,IF('Personnel Expense Calculator'!L46=Reference!$I$20,Reference!$H$20,IF('Personnel Expense Calculator'!L46=Reference!$I$21,Reference!$H$21,IF('Personnel Expense Calculator'!L46=Reference!$I$22,Reference!$H$22,IF('Personnel Expense Calculator'!L46=Reference!$I$23,Reference!$H$23,0)))))))))))))) -> 0 | J44: =R31*IF('Personnel Expense Calculator'!E46=Reference!$D$11,Reference!$C$11,IF('Personnel Expense Calculator'!E46=Reference!$D$12,Reference!$C$12,IF('Personnel Expense Calculator'!E46=Reference!$D$13,Reference!$C$13,0)))+(IF('Personnel Expense Calculator'!E46=Reference!$D$13,0,P31*Q31*IF('Personnel Expense Calculator'!L46=Reference!$I$11,Reference!$H$11,IF('Personnel Expense Calculator'!L46=Reference!$I$12,Reference!$H$12,IF('Personnel Expense Calculator'!L46=Reference!$I$13,Reference!$H$13,IF('Personnel Expense Calculator'!L46=Reference!$I$14,Reference!$H$14,IF('Personnel Expense Calculator'!L46=Reference!$I$15,Reference!$H$15,IF('Personnel Expense Calculator'!L46=Reference!$I$16,Reference!$H$16,IF('Personnel Expense Calculator'!L46=Reference!$I$18,Reference!$H$18,IF('Personnel Expense Calculator'!L46=Reference!$I$19,Reference!$H$19,IF('Personnel Expense Calculator'!L46=Reference!$I$20,Reference!$H$20,IF('Personnel Expense Calculator'!L46=Reference!$I$21,Reference!$H$21,IF('Personnel Expense Calculator'!L46=Reference!$I$22,Reference!$H$22,IF('Personnel Expense Calculator'!L46=Reference!$I$23,Reference!$H$23,0)))))))))))))) -> 0 | L44: =V31*IF('Personnel Expense Calculator'!E46=Reference!$D$11,Reference!$C$11,IF('Personnel Expense Calculator'!E46=Reference!$D$12,Reference!$C$12,IF('Personnel Expense Calculator'!E46=Reference!$D$13,Reference!$C$13,0)))+(IF('Personnel Expense Calculator'!E46=Reference!$D$13,0,T31*U31*IF('Personnel Expense Calculator'!L46=Reference!$I$11,Reference!$H$11,IF('Personnel Expense Calculator'!L46=Reference!$I$12,Reference!$H$12,IF('Personnel Expense Calculator'!L46=Reference!$I$13,Reference!$H$13,IF('Personnel Expense Calculator'!L46=Reference!$I$14,Reference!$H$14,IF('Personnel Expense Calculator'!L46=Reference!$I$15,Reference!$H$15,IF('Personnel Expense Calculator'!L46=Reference!$I$16,Reference!$H$16,IF('Personnel Expense Calculator'!L46=Reference!$I$18,Reference!$H$18,IF('Personnel Expense Calculator'!L46=Reference!$I$19,Reference!$H$19,IF('Personnel Expense Calculator'!L46=Reference!$I$20,Reference!$H$20,IF('Personnel Expense Calculator'!L46=Reference!$I$21,Reference!$H$21,IF('Personnel Expense Calculator'!L46=Reference!$I$22,Reference!$H$22,IF('Personnel Expense Calculator'!L46=Reference!$I$23,Reference!$H$23,0)))))))))))))) -> 0 | N44: 0
A45: 0 | D45: =F32*IF('Personnel Expense Calculator'!E47=Reference!$D$11,Reference!$C$11,IF('Personnel Expense Calculator'!E47=Reference!$D$12,Reference!$C$12,IF('Personnel Expense Calculator'!E47=Reference!$D$13,Reference!$C$13,0)))+(IF('Personnel Expense Calculator'!E47=Reference!$D$13,0,D32*E32*IF('Personnel Expense Calculator'!L47=Reference!$I$11,Reference!$H$11,IF('Personnel Expense Calculator'!L47=Reference!$I$12,Reference!$H$12,IF('Personnel Expense Calculator'!L47=Reference!$I$13,Reference!$H$13,IF('Personnel Expense Calculator'!L47=Reference!$I$14,Reference!$H$14,IF('Personnel Expense Calculator'!L47=Reference!$I$15,Reference!$H$15,IF('Personnel Expense Calculator'!L47=Reference!$I$16,Reference!$H$16,IF('Personnel Expense Calculator'!L47=Reference!$I$18,Reference!$H$18,IF('Personnel Expense Calculator'!L47=Reference!$I$19,Reference!$H$19,IF('Personnel Expense Calculator'!L47=Reference!$I$20,Reference!$H$20,IF('Personnel Expense Calculator'!L47=Reference!$I$21,Reference!$H$21,IF('Personnel Expense Calculator'!L47=Reference!$I$22,Reference!$H$22,IF('Personnel Expense Calculator'!L47=Reference!$I$23,Reference!$H$23,0)))))))))))))) -> 0 | F45: =J32*IF('Personnel Expense Calculator'!E47=Reference!$D$11,Reference!$C$11,IF('Personnel Expense Calculator'!E47=Reference!$D$12,Reference!$C$12,IF('Personnel Expense Calculator'!E47=Reference!$D$13,Reference!$C$13,0)))+(IF('Personnel Expense Calculator'!E47=Reference!$D$13,0,H32*I32*IF('Personnel Expense Calculator'!L47=Reference!$I$11,Reference!$H$11,IF('Personnel Expense Calculator'!L47=Reference!$I$12,Reference!$H$12,IF('Personnel Expense Calculator'!L47=Reference!$I$13,Reference!$H$13,IF('Personnel Expense Calculator'!L47=Reference!$I$14,Reference!$H$14,IF('Personnel Expense Calculator'!L47=Reference!$I$15,Reference!$H$15,IF('Personnel Expense Calculator'!L47=Reference!$I$16,Reference!$H$16,IF('Personnel Expense Calculator'!L47=Reference!$I$18,Reference!$H$18,IF('Personnel Expense Calculator'!L47=Reference!$I$19,Reference!$H$19,IF('Personnel Expense Calculator'!L47=Reference!$I$20,Reference!$H$20,IF('Personnel Expense Calculator'!L47=Reference!$I$21,Reference!$H$21,IF('Personnel Expense Calculator'!L47=Reference!$I$22,Reference!$H$22,IF('Personnel Expense Calculator'!L47=Reference!$I$23,Reference!$H$23,0)))))))))))))) -> 0 | H45: =N32*IF('Personnel Expense Calculator'!E47=Reference!$D$11,Reference!$C$11,IF('Personnel Expense Calculator'!E47=Reference!$D$12,Reference!$C$12,IF('Personnel Expense Calculator'!E47=Reference!$D$13,Reference!$C$13,0)))+(IF('Personnel Expense Calculator'!E47=Reference!$D$13,0,L32*M32*IF('Personnel Expense Calculator'!L47=Reference!$I$11,Reference!$H$11,IF('Personnel Expense Calculator'!L47=Reference!$I$12,Reference!$H$12,IF('Personnel Expense Calculator'!L47=Reference!$I$13,Reference!$H$13,IF('Personnel Expense Calculator'!L47=Reference!$I$14,Reference!$H$14,IF('Personnel Expense Calculator'!L47=Reference!$I$15,Reference!$H$15,IF('Personnel Expense Calculator'!L47=Reference!$I$16,Reference!$H$16,IF('Personnel Expense Calculator'!L47=Reference!$I$18,Reference!$H$18,IF('Personnel Expense Calculator'!L47=Reference!$I$19,Reference!$H$19,IF('Personnel Expense Calculator'!L47=Reference!$I$20,Reference!$H$20,IF('Personnel Expense Calculator'!L47=Reference!$I$21,Reference!$H$21,IF('Personnel Expense Calculator'!L47=Reference!$I$22,Reference!$H$22,IF('Personnel Expense Calculator'!L47=Reference!$I$23,Reference!$H$23,0)))))))))))))) -> 0 | J45: =R32*IF('Personnel Expense Calculator'!E47=Reference!$D$11,Reference!$C$11,IF('Personnel Expense Calculator'!E47=Reference!$D$12,Reference!$C$12,IF('Personnel Expense Calculator'!E47=Reference!$D$13,Reference!$C$13,0)))+(IF('Personnel Expense Calculator'!E47=Reference!$D$13,0,P32*Q32*IF('Personnel Expense Calculator'!L47=Reference!$I$11,Reference!$H$11,IF('Personnel Expense Calculator'!L47=Reference!$I$12,Reference!$H$12,IF('Personnel Expense Calculator'!L47=Reference!$I$13,Reference!$H$13,IF('Personnel Expense Calculator'!L47=Reference!$I$14,Reference!$H$14,IF('Personnel Expense Calculator'!L47=Reference!$I$15,Reference!$H$15,IF('Personnel Expense Calculator'!L47=Reference!$I$16,Reference!$H$16,IF('Personnel Expense Calculator'!L47=Reference!$I$18,Reference!$H$18,IF('Personnel Expense Calculator'!L47=Reference!$I$19,Reference!$H$19,IF('Personnel Expense Calculator'!L47=Reference!$I$20,Reference!$H$20,IF('Personnel Expense Calculator'!L47=Reference!$I$21,Reference!$H$21,IF('Personnel Expense Calculator'!L47=Reference!$I$22,Reference!$H$22,IF('Personnel Expense Calculator'!L47=Reference!$I$23,Reference!$H$23,0)))))))))))))) -> 0 | L45: =V32*IF('Personnel Expense Calculator'!E47=Reference!$D$11,Reference!$C$11,IF('Personnel Expense Calculator'!E47=Reference!$D$12,Reference!$C$12,IF('Personnel Expense Calculator'!E47=Reference!$D$13,Reference!$C$13,0)))+(IF('Personnel Expense Calculator'!E47=Reference!$D$13,0,T32*U32*IF('Personnel Expense Calculator'!L47=Reference!$I$11,Reference!$H$11,IF('Personnel Expense Calculator'!L47=Reference!$I$12,Reference!$H$12,IF('Personnel Expense Calculator'!L47=Reference!$I$13,Reference!$H$13,IF('Personnel Expense Calculator'!L47=Reference!$I$14,Reference!$H$14,IF('Personnel Expense Calculator'!L47=Reference!$I$15,Reference!$H$15,IF('Personnel Expense Calculator'!L47=Reference!$I$16,Reference!$H$16,IF('Personnel Expense Calculator'!L47=Reference!$I$18,Reference!$H$18,IF('Personnel Expense Calculator'!L47=Reference!$I$19,Reference!$H$19,IF('Personnel Expense Calculator'!L47=Reference!$I$20,Reference!$H$20,IF('Personnel Expense Calculator'!L47=Reference!$I$21,Reference!$H$21,IF('Personnel Expense Calculator'!L47=Reference!$I$22,Reference!$H$22,IF('Personnel Expense Calculator'!L47=Reference!$I$23,Reference!$H$23,0)))))))))))))) -> 0 | N45: 0
A46: Fringe Benefits | D46: =SUM(D40:E45) -> 0 | F46: =SUM(F40:G45) -> 0 | H46: =SUM(H40:I45) -> 0 | J46: =SUM(J40:K45) -> 0 | L46: =SUM(L40:M45) -> 0 | N46: =SUM(N40:O45) -> 0
A49: Equipments
N50: =SUM(D50:M50) -> 0
N51: =SUM(D51:M51) -> 0
N52: 0
N53: 0
A54: Total Equipment | D54: =SUM(D50:E53) -> 0 | F54: =SUM(F50:G53) -> 0 | H54: =SUM(H50:I53) -> 0 | J54: =SUM(J50:K53) -> 0 | L54: =SUM(L50:M53) -> 0 | N54: =SUM(N50:O53) -> 0
A55: Travel
A56: Domestic | N56: =SUM(D56:M56) -> 0
A57: Foreign | N57: =SUM(D57:M57) -> 0
A58: In-State | N58: 0
N59: 0
A60: Total Travel | D60: =SUM(D56:E59) -> 0 | F60: =SUM(F56:G59) -> 0 | H60: =SUM(H56:I59) -> 0 | J60: =SUM(J56:K59) -> 0 | L60: =SUM(L56:M59) -> 0 | N60: =SUM(N56:O59) -> 0
A61: Participant Support Costs
A62: Stipends | N62: =SUM(D62:M62) -> 0
A63: Travel | N63: =SUM(D63:M63) -> 0
A64: Subsistance | N64: 0
A65: Other | N65: 0
A66: Total Participant Costs | D66: =SUM(D62:E65) -> 0 | F66: =SUM(F62:G65) -> 0 | H66: =SUM(H62:I65) -> 0 | J66: =SUM(J62:K65) -> 0 | L66: =SUM(L62:M65) -> 0 | N66: =SUM(N62:O65) -> 0
A67: Other Direct Costs
A68: Materials and Supplies | N68: =SUM(D68:M68) -> 0
A69: Repair and Maintenance | N69: =SUM(D69:M69) -> 0
A70: Repair and Maintenance (Other)-Physical Plant Charges | N70: 0
A71: Publication Costs/Documentation/Dissemination | N71: 0
A72: Subawards subject to F&A rate | N72: 0
A73: Subawards not subject to F&A rate (Excluded from MTDC) | N73: 0
A74: Graduate Tuition and Fees (Excluded from MTDC) | N74: 0
A75: Other costs, subject to F&A rate | N75: 0
A76: Other Costs, not Subject to F&A rate (Excluded from MTDC) | N76: 0
A77: Rental of research space and equipment (Excluded from MTDC) | N77: 0
A78: Vendor Contracts | N78: 0
A79: Human Subject Payments | N79: 0
A80: Service Centers | N80: 0
A81: Animal Care costs | N81: 0
A82: Honararium | N82: 0
A83: Professional Service Agreement\Consultants\Other costs F&A | N83: 0
A84: Total Costs | D84: =SUM(D68:E83) -> 0 | F84: =SUM(F68:G83) -> 0 | H84: =SUM(H68:I83) -> 0 | J84: =SUM(J68:K83) -> 0 | L84: =SUM(L68:M83) -> 0 | N84: =SUM(N68:O83) -> 0
G87: Year 1 | I87: Year 2 | K87: Year 3 | M87: Year 4 | O87: Year 5 | Q87: Total
A88: Total Direct Costs | G88: =SUM(D84,D66,D60,D54,D46,F33) -> 0 | I88: =SUM(F84,F66,F60,F54,F46,J33) -> 0 | K88: =SUM(H84,H66,H60,H54,H46,N33) -> 0 | M88: =SUM(J84,J66,J60,J54,J46,R33) -> 0 | O88: =SUM(L84,L66,L60,L54,L46,V33) -> 0 | Q88: =SUM(G88:P88) -> 0
A89: Modified Total Direct Costs | G89: =G88-D73-D74-D76-D77-D54-D66 -> 0 | I89: =I88-F73-F74-F76-F77-F54-F66 -> 0 | K89: =K88-H73-H74-H76-H77-H54-H66 -> 0 | M89: =M88-J73-J74-J76-J77-J54-J66 -> 0 | O89: =O88-L73-L74-L76-L77-L54-L66 -> 0 | Q89: =SUM(G89:P89) -> 0
A90: TDC - Subs | G90: =G88-D72-D73 -> 0 | I90: =I88-F72-F73 -> 0 | K90: =K88-H72-H73 -> 0 | M90: =M88-J72-J73 -> 0 | O90: =O88-L72-L73 -> 0 | Q90: =SUM(G90:P90) -> 0
A91: F&A | D91: ='Cover Page'!J21 -> 0 | G91: ='Cover Page'!K37*G89 -> 0 | I91: ='Cover Page'!K38*I89 -> 0 | K91: ='Cover Page'!K39*K89 -> 0 | M91: ='Cover Page'!K40*M89 -> 0 | O91: ='Cover Page'!K41*O89 -> 0 | Q91: 0
A92: Total Cost Share | G92: =SUM(G88+G91) -> 0 | I92: =SUM(I88+I91) -> 0 | K92: =SUM(K88+K91) -> 0 | M92: =SUM(M88+M91) -> 0 | O92: =SUM(O88+O91) -> 0 | Q92: =SUM(G92:P92) -> 0
A97: Required Minimum Cost Share | G97: ='Detailed Budget'!D81*'Cover Page'!E26-G92 -> 0 | I97: ='Detailed Budget'!F81*'Cover Page'!E26-I92 -> 0 | K97: ='Detailed Budget'!H81*'Cover Page'!E26-K92 -> 0 | M97: ='Detailed Budget'!J81*'Cover Page'!E26-M92 -> 0 | O97: ='Detailed Budget'!L81*'Cover Page'!E26-O92 -> 0 | Q97: =SUM(G97:P97) -> 0
C99: COMMENTS:
